Cogmind - Beta 11.1 @@@ ROGUE MODE // 2022.05.15 @ 03:28:36 Player: Hubris FlightPlusPlus Result: Escaped singularity! Performance ------------- Evolutions (9) 4500 Regions Visited (39) 7800 Robots Destroyed (195) 975 Value Destroyed (8425) 8425 Prototype IDs (306) 6120 Alien Tech Used (8) 1600 Bonus (50497) 50497 TOTAL SCORE: 79917 Bonus ------- High Alert Combat Kills 235 Follower Combat Kills 2174 Network Hubs Disabled 400 Aligned with FarCom 300 Met Data Miner 300 Met Imprinter 300 Destroyed Z-Imprinter 1000 Met Zhirov 300 Met Warlord at Base 500 MAIN.C Attacked Warlord 500 Built Enhanced Grunts 300 Met R17 at Cetus 500 Found Hidden Lab 3000 Hacked Protovariant 500 Destroyed MAIN.C Guards 500 Met MAIN.C 5000 Destroyed MAIN.C Shell 5000 Destroyed MAIN.C 10000 Met Warlord at Command 2000 Met Architect 300 Destroyed A8 300 Destroyed A6 400 Destroyed A4 700 Destroyed A3 800 Destroyed Architect 15000 Win 3000 Friendly Fire -2812 Cogmind --------- Core Integrity 204/1600 Matter 405/425 Energy 100/100 System Corruption 0% Temperature Cool (2) Movement Flying (20) Location Near Former Tau Ceti IV Parts ------- > --- POWER (3) -------- (None) > --- PROPULSION (10) -- Experimental Q-thruster > --- UTILITY (11) ----- (None) > --- WEAPON (2) ------- (None) > --- INVENTORY (5) ---- Antimatter Reactor Experimental Biometal Leg Experimental Matter Compressor (500) Heavy Hardcell Cannon Peak State ------------ > --- POWER ------------ Light Quantum Reactor Zero-point Reactor Zero-point Reactor > --- PROPULSION ------- Diametric Drive Diametric Drive Electron Diverter Electron Diverter Electron Diverter Electron Diverter Cooled Impulse Thruster Impulse Thruster Array Experimental Q-thruster > --- UTILITY ---------- Experimental Power Amplifier Experimental Power Amplifier Experimental Energy Well Experimental Matter Compressor Advanced Quantum Shading Machine Experimental Targeting Computer Experimental Weapon Cycler Centrium Heavy Armor Plating Experimental Powered Armor Experimental Shield Generator > --- WEAPON ----------- Hypervelocity Multirail Nanosword > --- INVENTORY -------- Gravity Neutralizer ST Field Compressor Femtoactuators A3's Sniper Rifle Compact Linear Accelerator [Rating: 241] Favorites ----------- Power Micro Antimatter Reactor Engine Improved Deuterium Engine Power Core Improved Fusion Compressor Reactor Micro Antimatter Reactor Propulsion Improved VTOL Module Treads Advanced Treads Leg Aluminum Leg Hover Unit Improved Gyrokinetic Inverter Flight Unit Improved VTOL Module Utility Medium Storage Unit Device Experimental Power Amplifier Storage Medium Storage Unit Processor Advanced Visual Processing Unit Hackware Hacking Suite Protection Hardened Light Armor Plating Artifact Spacefold Activator Weapon Nanosword Energy Gun Heavy Laser Energy Cannon Compact HERF Cannon Ballistic Gun Heavy Assault Rifle Ballistic Cannon Heavy Hardcell Cannon Launcher Mini Grenade Launcher Special Weapon Improved Plasma Cutter Impact Weapon Power Maul Slashing Weapon Nanosword Piercing Weapon CR-A16's Behemoth Slayer Special Melee Weapon Advanced Datajack Build | -11 -10 -10 -9 -9 -9 -8 -8 -7 -7 -7 -7 -6 -6 -6 -6 -6 -6 -5 -5 -5 -5 -5 -5 -5 -4 -4 -4 -4 -4 -4 -3 -3 -3 -2 -2 -2 -1 -1 -1 ------- Run | Scr Mat Min Mat Min Exi Min Mat Fac Low Low Dat Pro Fac Low Low Zio Dee Pro Fac Was Fac Upp Upp War Pro Fac Ext Cet Arc Hub Res Arm Lab Res Tes Sec Acc Com Ac0 Slots Evolved 18 | . . . 2 . . . 2 2 . . . . 2 . . . . . 2 . . . . . . 2 . . . . 2 . . 2 . . 2 . . Power 2 | . . . . . . . . . . . . . . . . . . . . . . . . . . 1 . . . . 1 . . . . . . . . Propulsion 7 | . . . . . . . 2 . . . . . 2 . . . . . . . . . . . . . . . . . 1 . . . . . 2 . . Utility 9 | . . . 2 . . . . 2 . . . . . . . . . . 2 . . . . . . 1 . . . . . . . 2 . . . . . Weapon . | . . . . . . . . . . . . . . . . . . . . . . . . . . . . . . . . . . . . . . . . Parts Attached 584 | 4 18 9 27 6 6 . 20 15 6 . . . 8 1 1 3 1 3 6 . 13 3 1 14 . 5 3 3 5 13 61 20 9 10 17 14 8 103 148 Power 76 | . 1 2 1 1 . . 4 . 1 . . . . 1 . . . . 2 . 4 1 . . . . . 1 1 2 9 3 1 1 6 . . 21 13 Engine 16 | . 1 2 1 1 . . 4 . . . . . . . . . . . 2 . 2 1 . . . . . . . . 2 . . . . . . . . Core 18 | . . . . . . . . . 1 . . . . 1 . . . . . . . . . . . . . 1 1 2 1 . . . 2 . . 8 1 Reactor 42 | . . . . . . . . . . . . . . . . . . . . . 2 . . . . . . . . . 6 3 1 1 4 . . 13 12 Propulsion 113 | . 2 . 5 1 2 . 1 4 1 . . . 3 . . . . . . . 1 . . 4 . 1 1 . . 3 16 8 1 5 5 1 1 9 38 Treads 10 | . 2 . 4 1 2 . . . . . . . . . . . . . . . . . . . . . . . . . . . . . . . . . 1 Leg 8 | . . . . . . . . . . . . . 1 . . . . . . . . . . 1 . . . . . . . . . . . . . . 6 Wheel . | . . . . . . . . . . . . . . . . . . . . . . . . . . . . . . . . . . . . . . . . Hover 4 | . . . . . . . . . . . . . . . . . . . . . . . . 1 . 1 . . . . . . . . . . . . 2 Flight 91 | . . . 1 . . . 1 4 1 . . . 2 . . . . . . . 1 . . 2 . . 1 . . 3 16 8 1 5 5 1 1 9 29 Utility 233 | 3 3 . 8 3 2 . 1 8 3 . . . 1 . . 1 1 2 2 . 5 1 . 7 . 3 . 1 3 5 30 8 6 3 1 8 2 52 60 Device 105 | 3 . . 1 . . . . 3 1 . . . . . . 1 . 1 . . 2 1 . 4 . 3 . . 1 2 12 4 4 2 1 2 . 24 33 Storage 29 | . 2 . 1 . . . . 1 . . . . . . . . . . . . . . . 1 . . . . . . 4 . 1 . . . . 9 10 Processor 18 | . . . 1 . . . . . 1 . . . 1 . . . . 1 . . 2 . . 1 . . . . . . 4 1 . . . . . 4 2 Hackware 15 | . . . . 1 2 . . 2 . . . . . . . . . . 2 . . . . 1 . . . . 2 1 1 . . 1 . . 1 1 . Protection 59 | . 1 . 5 2 . . 1 2 1 . . . . . . . 1 . . . 1 . . . . . . 1 . 2 9 3 1 . . . . 14 15 Artifact 7 | . . . . . . . . . . . . . . . . . . . . . . . . . . . . . . . . . . . . 6 1 . . Weapon 162 | 1 12 7 13 1 2 . 14 3 1 . . . 4 . 1 2 . 1 2 . 3 1 1 3 . 1 2 1 1 3 6 1 1 1 5 5 5 21 37 Energy Gun 5 | . . . . . . . . . . . . . . . . . . . . . . . . . . . . . . . . . 1 . . . . 3 1 Energy Cannon 12 | . . . . . . . . . . . . . . . . . . . . . . . . 2 . . . . . . . . . . 1 . . . 9 Ballistic Gun 63 | 1 7 4 8 . 2 . 5 1 . . . . 3 . . . . . . . . . . . . . . . . . 1 . . . 1 2 . 10 18 Ballistic Cannon 12 | . . . . . . . . . . . . . . . . . . . . . . . . . . . . . . 3 1 . . . . . . . 8 Launcher 19 | . 1 3 5 1 . . 3 1 . . . . . . 1 . . . . . 1 1 . . . . . . . . 1 . . . . . . 1 . Special Weapon 7 | . 4 . . . . . . . 1 . . . . . . . . . . . . . . . . . . . . . . . . . . . . 2 . Impact Weapon 2 | . . . . . . . . . . . . . 1 . . 1 . . . . . . . . . . . . . . . . . . . . . . . Slashing Weapon 17 | . . . . . . . . . . . . . . . . . . . . . . . . . . 1 1 . . . . . . 1 2 3 4 4 1 Piercing Weapon 24 | . . . . . . . 6 1 . . . . . . . 1 . 1 2 . 2 . 1 1 . . 1 1 1 . 3 1 . . 1 . . 1 . Special Melee Weapon 1 | . . . . . . . . . . . . . . . . . . . . . . . . . . . . . . . . . . . . . 1 . . Unidentified Prototypes 44 | . . . 3 . . . . . . . . . . . . 1 . . . . 1 . . 8 . 1 . 1 . 1 8 2 4 4 3 2 . 1 4 Parts Lost 47 | . . . 1 . . . . . 2 . . . . 1 1 . . 1 . . 7 . . . 1 . . 2 . . 2 . . . . . . 2 27 Power 12 | . . . 1 . . . . . 1 . . . . 1 . . . 1 . . 2 . . . . . . . . . 1 . . . . . . 1 4 Propulsion 21 | . . . . . . . . . . . . . . . . . . . . . 3 . . . 1 . . 2 . . 1 . . . . . . 1 13 Utility 12 | . . . . . . . . . . . . . . . 1 . . . . . 2 . . . . . . . . . . . . . . . . . 9 Weapon 2 | . . . . . . . . . 1 . . . . . . . . . . . . . . . . . . . . . . . . . . . . . 1 Highest Loss Streak 7 | . . . 1 . . . . . 1 . . . . 1 1 . . 1 . . 4 . . . 1 . . 2 . . 1 . . . . . . 1 7 To Critical Strikes . | . . . . . . . . . . . . . . . . . . . . . . . . . . . . . . . . . . . . . . . . Average Slot Usage (%) 90 | . 100 100 98 99 95 88 64 78 90 84 84 84 81 86 85 97 98 82 89 94 89 70 70 87 88 88 94 90 82 96 90 91 91 89 93 93 86 89 91 Engine 4 | . 14 14 10 11 11 11 9 7 . . . . . . . . . . 4 5 3 5 5 5 5 . . . . . . . . . 1 4 3 . . Core 2 | . . . . . . . . . 6 7 7 7 6 6 6 6 6 . . . . . . . . 9 10 10 10 10 1 6 4 4 3 4 3 4 1 Reactor 2 | . . . . . . . . . . . . . . . . . . . . . 1 . . . . . . . . . 10 6 9 8 6 4 3 4 8 Treads 6 | . 24 28 21 21 22 22 . . . . . . . . . . . . . . . . . . . . . . . . . . . . . . . . . Flight 21 | . . . . . . . 9 15 30 30 30 30 30 40 40 40 40 40 35 35 32 23 23 30 29 26 28 31 21 30 30 31 29 30 32 33 31 31 33 Device 10 | . 1 . 3 . . . . 5 14 15 15 15 13 13 11 11 11 6 5 5 8 4 5 7 11 12 15 15 15 10 16 20 22 19 19 18 15 19 19 Storage 7 | . 14 14 11 11 11 11 9 7 7 7 7 7 6 6 6 6 6 6 5 5 5 5 5 5 5 5 5 5 5 5 4 4 6 4 4 4 3 6 5 Processor 5 | . . . 9 11 6 . . . 6 7 7 7 11 13 13 13 13 18 17 17 18 17 17 14 11 10 10 10 9 5 3 . . . . . . 1 6 Hackware 7 | . . . . . 19 33 20 25 7 7 7 7 1 . . . . . 10 11 11 11 11 15 17 15 15 10 13 21 11 9 9 12 12 12 13 3 . Protection 7 | . 12 14 19 20 6 . 6 4 7 7 7 7 6 6 6 6 7 7 5 5 . . . . . . . 4 1 4 3 3 . 4 4 4 3 6 5 Ballistic Gun 6 | . 27 27 19 20 11 11 3 4 . . . . . . . . . . . . . . . . . . . . . . . . . . . . . . 1 Piercing Weapon 1 | . . . . . . . 5 2 . . . . . . . 5 6 1 2 5 3 . . 3 5 3 . . 4 5 2 5 4 4 2 3 . . . Naked Turns 1 | . . . . . . . . . . . . . . . . . . . . . . . . . . . . . . . . . . . . . . . 1 Heaviest Build 110 | 11 34 36 43 45 43 40 42 37 20 19 19 19 19 19 27 25 25 24 20 20 34 20 23 25 25 28 26 34 34 38 52 56 64 64 64 58 56 110 109 Greatest Support 148 | 20 40 40 44 44 44 44 50 50 20 20 20 20 32 32 32 32 32 32 20 32 33 20 20 34 34 28 32 32 23 39 56 56 64 66 66 61 69 99 148 Greatest Overweight (x) 8 | . . . 1 1 . . . 1 . . . . 1 . . . . . . . 1 . 1 . . . 8 1 1 . . 1 1 1 1 . 1 1 1 Average Overweight (x) . | . . . . . . . . . . . . . . . . . . . . . . . . . . . . . . . . . . . . . . . . Largest Inventory Capacity 15 | 8 15 15 15 15 15 15 15 15 10 10 10 10 10 10 10 10 10 10 10 10 10 10 10 10 10 10 10 10 10 10 15 10 10 10 10 10 10 15 10 Average Capacity 11 | 8 12 15 15 15 15 15 15 13 10 10 10 10 10 10 10 10 10 10 10 10 10 10 10 10 10 10 10 10 10 10 10 10 10 10 10 10 10 10 7 Most Carried 15 | 8 15 15 15 15 15 15 15 14 10 9 9 10 10 10 10 10 10 10 10 10 10 10 10 10 9 10 9 10 10 10 10 10 10 10 10 10 10 15 10 Average Carried 10 | 6 11 14 14 14 14 14 13 11 9 9 9 9 9 8 9 9 9 9 9 9 9 9 9 9 9 9 8 9 9 10 9 9 9 9 9 9 9 9 7 Final Capacity 15 | 8 15 15 15 15 15 15 15 10 10 10 10 10 10 10 10 10 10 10 10 10 10 10 10 10 10 10 10 10 10 10 10 10 10 10 10 10 10 10 5 Final Carried 15 | 8 15 14 15 15 15 15 14 8 9 9 9 10 10 8 10 10 10 10 9 10 10 9 10 9 9 9 9 10 10 10 10 10 10 10 10 10 9 10 5 Class Distribution -------------------- 24% | Mutant 21% | Hacker-Sprinter 12% | Generator-Sprinter 12% | Wizard-Sprinter 11% | Hacker-Mutant 7% | Sprinter Dominant Class ---------------- Mutant | -10/Materials Mutant | -10/Mines Mutant | -9/Materials Mutant | -9/Mines Mutant | -9/Exiles Hacker-Mutant | -8/Mines Hacker-Mutant | -8/Materials Hacker-Mutant | -7/Factory Sprinter | -7/Lower Caves Sprinter | -7/Lower Caves Sprinter | -7/Data Miner Sprinter | -6/Proximity Caves Scout | -6/Factory Scout | -6/Lower Caves Scout | -6/Lower Caves Sprinter | -6/Zion Sprinter | -6/Deep Caves Sprinter | -5/Proximity Caves Hacker-Sprinter | -5/Factory Hacker-Sprinter | -5/Waste Hacker-Sprinter | -5/Factory Hacker-Sprinter | -5/Upper Caves Hacker-Sprinter | -5/Upper Caves Hacker-Sprinter | -5/Warlord Hacker-Sprinter | -4/Proximity Caves Hacker-Sprinter | -4/Factory Hacker-Sprinter | -4/Extension Commander-Sprinter | -4/Cetus Hacker-Sprinter | -4/Archives Hacker-Sprinter | -4/Hub_04(d) Hacker-Sprinter | -3/Research Hacker-Sprinter | -3/Armory Hacker-Sprinter | -3/Lab Wizard-Sprinter | -2/Research Wizard-Sprinter | -2/Testing Wizard-Sprinter | -2/Section 7 Wizard-Sprinter | -1/Access Generator-Sprinter | -1/Command Generator-Sprinter | -1/Access_0 Resources | -11 -10 -10 -9 -9 -9 -8 -8 -7 -7 -7 -7 -6 -6 -6 -6 -6 -6 -5 -5 -5 -5 -5 -5 -5 -4 -4 -4 -4 -4 -4 -3 -3 -3 -2 -2 -2 -1 -1 -1 ----------- Run | Scr Mat Min Mat Min Exi Min Mat Fac Low Low Dat Pro Fac Low Low Zio Dee Pro Fac Was Fac Upp Upp War Pro Fac Ext Cet Arc Hub Res Arm Lab Res Tes Sec Acc Com Ac0 Matter Collected 14368 | 274 106 327 519 . . 116 200 130 102 8 . . 68 26 10 30 . . 12 . 38 12 63 775 . 95 60 235 68 232 629 9 281 401 150 150 305 5084 3853 Remotely 36 | 36 . . . . . . . . . . . . . . . . . . . . . . . . . . . . . . . . . . . . . . . Salvage Created 11675 | 166 136 136 560 79 . 76 951 325 50 . . . 97 . . . . . 12 . 90 22 44 . . 183 199 45 68 746 450 175 . 98 152 190 40 3066 3519 Parts 614 | 13 19 14 37 4 . 2 59 28 4 . . . 11 . . . . . 3 . 11 6 3 . . 14 16 . 4 25 25 9 . 3 8 13 6 92 185 Haulers Intercepted 16 | . . . 3 . . . 5 . . . . . . . . . . . . . . . . . . . . . . 3 2 . . 1 1 1 . . . Recyclers Shooed 4 | 1 . . 2 . . . . . . . . . . . . . . . . . . . . . . . . . . . . . . . . . . 1 . Parts Field Recycled . | . . . . . . . . . . . . . . . . . . . . . . . . . . . . . . . . . . . . . . . . Retrieved Matter . | . . . . . . . . . . . . . . . . . . . . . . . . . . . . . . . . . . . . . . . . Parts Self-Destructed 7 | . . . . . . . . . 3 . . . . . 3 . . . . . . 1 . . . . . . . . . . . . . . . . . Prevented 2 | . . . . . . . . . . . . . . . 2 . . . . . . . . . . . . . . . . . . . . . . . . Kills | -11 -10 -10 -9 -9 -9 -8 -8 -7 -7 -7 -7 -6 -6 -6 -6 -6 -6 -5 -5 -5 -5 -5 -5 -5 -4 -4 -4 -4 -4 -4 -3 -3 -3 -2 -2 -2 -1 -1 -1 ------- Run | Scr Mat Min Mat Min Exi Min Mat Fac Low Low Dat Pro Fac Low Low Zio Dee Pro Fac Was Fac Upp Upp War Pro Fac Ext Cet Arc Hub Res Arm Lab Res Tes Sec Acc Com Ac0 Combat Hostiles Destroyed 126 | . 5 11 15 . . 2 18 2 3 . . . . . . . . . . . 4 5 . . . . 2 . . 2 4 3 . . . 1 . 9 40 Melee 9 | . . . . . . 1 . . . . . . . . . . . . . . . . . . . . . . . . 4 1 . . . . . 2 1 Guns 77 | . 3 4 11 . . 1 14 2 . . . . . . . . . . . . . . . . . . . . . . . . . . . 1 . 7 34 Cannons 2 | . . . . . . . . . . . . . . . . . . . . . . . . . . . . . . . . . . . . . . . 2 AOE 31 | . 2 7 4 . . . 4 . 3 . . . . . . . . . . . 4 5 . . . . . . . 1 . 1 . . . . . . . Classes Destroyed 16 | 2 5 1 2 . . . . 1 . . . . . . . . . . 1 . . . . . . . 1 . . . . 1 . . . . . 2 . Worker 14 | . 1 2 1 1 . . 1 . . . . . 1 . . . . . . . . . . . . . . . . 3 2 . . . 1 . . 1 . Builder 16 | . 2 . . . . . 2 5 . . . . . . . . . . . . 1 . . . . 2 . . . 2 1 . . . . 1 . . . Tunneler 9 | 4 . . . 1 . . 1 2 . . . . . . . . . . . . . . . . . . . . . 1 . . . . . . . . . Hauler 16 | . . . 3 . . . 5 . . . . . . . . . . . . . . . . . . . . . . 3 2 . . 1 1 1 . . . Recycler 9 | 1 . . . 1 . . 1 1 . . . . . . . . . . . . . . . . . 1 . . . 1 . . . . . . . 3 . Operator 5 | . . . . . . . . . . . . . . . . . . . 1 . 1 . . . . . . . . 1 . . . . 1 . 1 . . Drone 1 | . . . . . . . . . . . . . . . . . . . . . . . . . . . . . . . . 1 . . . . . . . Watcher 14 | . 1 . 2 . . . 3 1 . . . . 3 . . . . . . . 1 . . . . . . . . . 1 . . . . . . 2 . Swarmer 38 | . 3 . 8 . . . 11 . 3 . . . . . . . . . . . 4 5 . . . . . . . . 4 . . . . . . . . Grunt 17 | . 2 2 2 . . 2 6 . . . . . . . . . . . . . . . . . . . . . . 1 . 1 . . . 1 . . . Sentry 8 | . . . 5 . . . 1 1 . . . . . . . . . . . . . . . . . . . . . 1 . . . . . . . . . Specialist 2 | . . . . . . . . . . . . . . . . . . . . . . . . . . . . . . . . . . . . . . 2 . Hunter 4 | . . . . . . . . . . . . . . . . . . . . . . . . . . . . . . . . . . . . . . 4 . Programmer 2 | . . . . . . . . 1 . . . . . . . . . . . . . . . . . . . . . . . . . . . . . 1 . Behemoth 3 | . . . . . . . . . . . . . . . . . . . . . . . . . . . 2 . . . . 1 . . . . . . . Enhanced Grunt 25 | . . . . . . . . . . . . . . . . . . . . . . . . . . . . . . . . . . . . . . . 25 Enhanced Sentry 2 | . . . . . . . . . . . . . . . . . . . . . . . . . . . . . . . . . . . . . . . 2 Enhanced Hunter 8 | . . . . . . . . . . . . . . . . . . . . . . . . . . . . . . . . . . . . . . . 8 Combat Programmer 1 | . . . . . . . . . . . . . . . . . . . . . . . . . . . . . . . . . . . . . . 1 . Decomposer 3 | . . . . . . . . . . . . . . . . . . . . . . . 3 . . . . . . . . . . . . . . . . Assembled 9 | . . 9 . . . . . . . . . . . . . . . . . . . . . . . . . . . . . . . . . . . . . Best Kill Streak 13 | 3 4 6 5 1 . 2 13 3 3 . . . 2 . . . . . 1 . 4 5 . . . 3 2 . . 12 5 2 . 1 1 1 . 3 11 Combat Bots Only 11 | . 3 6 5 . . 2 11 1 3 . . . . . . . . . . . 4 5 . . . . 2 . . 2 2 2 . . . 1 . 3 11 Max Kills in Single Turn 11 | 1 2 4 4 1 . 1 5 1 1 . . . 1 . . . . . 1 . 4 2 1 . . 1 1 1 . 11 1 1 . 1 1 1 1 1 2 Gunslinging . | . . . . . . . . . . . . . . . . . . . . . . . . . . . . . . . . . . . . . . . . Exploded 4 | . 2 4 4 . . . 3 . 1 . . . . . . . . . . . 4 2 . . . . . . . 1 . 1 . . . . . . . Melee 1 | . . . . . . 1 . . . . . . . . . . . . . . . . . . . . . . . . 1 1 . . . . . 1 1 Uniques/NPCs Destroyed 8 | . . . . . . . . . . . . . . . . . 1 . . . . . . . . . . 1 . . . . . . . . . 1 5 Z-Imprinter (-6/Deep Caves) A7 (-4/Cetus) MAIN.C Shell (-1/Command) A6 (-1/Access_0) A3 (-1/Access_0) A8 (-1/Access_0) A4 (-1/Access_0) Architect (-1/Access_0) Combat | -11 -10 -10 -9 -9 -9 -8 -8 -7 -7 -7 -7 -6 -6 -6 -6 -6 -6 -5 -5 -5 -5 -5 -5 -5 -4 -4 -4 -4 -4 -4 -3 -3 -3 -2 -2 -2 -1 -1 -1 -------- Run | Scr Mat Min Mat Min Exi Min Mat Fac Low Low Dat Pro Fac Low Low Zio Dee Pro Fac Was Fac Upp Upp War Pro Fac Ext Cet Arc Hub Res Arm Lab Res Tes Sec Acc Com Ac0 Damage Taken 16223 | . 94 188 639 . . 19 159 154 205 . . 32 . 24 120 . 228 65 20 . 412 76 43 . 45 . 147 76 . 105 367 320 . 142 422 1284 378 1051 9408 Core 3037 | . . 22 80 . . . 7 25 17 . . 16 . . 42 . 48 23 20 . 135 50 43 . . . 58 25 . . 58 70 . . 44 1015 91 85 1063 Absorbed by Shields 6736 | . . . 111 . . . . . . . . . . . . . . . . . . . . . . . . . . . 17 . . . . . . 909 5699 Reduced by Siege Mode 120 | . . . . . . . . . . . . . . . . . . . . . . . . . . . . . . . . . . . . . . . 120 Redirected to Shielding 373 | . . . . . . . . . 14 . . 10 . . 13 . 45 12 . . . . . . . . . . . . . 43 . . . . . 113 123 Regen/Repaired (Parts) 56 | . . . . . . . . . . . . . . . . . . . . . . . . . . . . . . . . . . . . . . 56 . Core Remaining (%) 76 | 100 . 91 . . . 80 98 . . . . 91 . . . . . 86 . . . . . . 75 . . . . 92 . . 90 . . 26 . . 12 Volleys Fired 492 | 17 20 13 42 . . . . . 4 . . . . . . . . . . . 1 3 . 1 . . . . . 1 . . . . . 5 . 118 267 Largest 2 | 2 2 2 2 . . . . . 1 . . . . . . . . . . . 1 1 . 1 . . . . . 1 . . . . . 1 . 2 1 Hottest 100 | 40 100 60 60 . . . . . 30 . . . . . . . . . . . 46 46 . 100 . . . . . 60 . . . . . 50 . 89 94 Shots Fired 711 | 34 33 20 73 . . 3 70 19 4 . . . 3 . . . . . . . 1 3 . 1 . . . . . 1 . . . . . 5 . 174 267 Gun 473 | 34 26 13 71 . . 3 70 19 . . . . 3 . . . . . . . . . . . . . . . . . . . . . . 5 . 78 151 Cannon 118 | . . . . . . . . . . . . . . . . . . . . . . . . 1 . . . . . 1 . . . . . . . . 116 Launcher 28 | . 1 7 2 . . . . . 4 . . . . . . . . . . . 1 3 . . . . . . . . . . . . . . . 10 . Special 92 | . 6 . . . . . . . . . . . . . . . . . . . . . . . . . . . . . . . . . . . . 86 . Kinetic 513 | 34 26 13 71 . . 3 70 19 . . . . 3 . . . . . . . . . . . . . . . . 1 . . . . . 5 . 20 248 Thermal 149 | . 6 . . . . . . . . . . . . . . . . . . . . . . . . . . . . . . . . . . . . 143 . Explosive 18 | . 1 7 2 . . . . . 4 . . . . . . . . . . . 1 3 . . . . . . . . . . . . . . . . . Electromagnetic 30 | . . . . . . . . . . . . . . . . . . . . . . . . . . . . . . . . . . . . . . 11 19 Entropic 1 | . . . . . . . . . . . . . . . . . . . . . . . . 1 . . . . . . . . . . . . . . . Robot Hit Streak 24 | 6 7 8 12 . . 13 11 6 . . . . 4 . . . . . . . . 6 . . . . . . . . . . . . . . . 24 21 Robot Miss Streak 9 | 5 5 2 9 . . . 2 2 . . . . . . . . . . . . . . . . . . . . . . . . . . . . . 2 4 Penetration Max 2 | . . . . . . . . . . . . . . . . . . . . . . . . . . . . . . . . . . . . 1 . . 2 Secondary Targets 1 | . . 1 . . . . . . . . . . . . . . . . . . . . . . . . . . . . . . . . . . . . . Max Gunslinging Chain 1 | . . 1 . . . . . . . . . . . . . . . . . . . . . . . . . . . . . . . . . . . . . Autonomous 95 | . . . . . . 3 70 19 . . . . 3 . . . . . . . . . . . . . . . . . . . . . . . . . . Shots Hit Robots 803 | 19 12 13 60 . . 3 77 27 . . . . 4 . . . . 1 1 . 4 2 3 . . 3 3 6 6 7 15 2 . 1 3 2 1 235 293 Core Hits 388 | 10 7 22 31 . . 2 34 10 3 . . . 3 . . . . . 1 . 5 5 . . . 1 . 1 3 14 9 4 . 1 2 7 1 61 151 Critical Kills 41 | 1 . . . . . . . . . . . . . . . . . . . . . . . . . . . . . . . . . . . 1 . 6 33 Critical Parts Destroyed 87 | . . . 1 . . . . 1 . . . . . . . . . . . . . . . . . . . . . . . . . . . 6 . 10 69 Critical Strikes 177 | 1 . . 1 . . . 2 5 . . . . . . . . . . . . 1 . . . . . . 1 2 2 3 . . . . 7 . 18 134 Burn 2 | . . . . . . . . . . . . . . . . . . . . . . . . . . . . . . . . . . . . . . 2 . Destroy 152 | 1 . . 1 . . . . 1 . . . . . . . . . . . . . . . . . . . . . . . . . . . 7 . 16 126 Blast 4 | . . . . . . . . . . . . . . . . . . . . . . . . . . . . . . . . . . . . . . . 4 Sever 4 | . . . . . . . . . . . . . . . . . . . . . . . . . . . . . . . . . . . . . . . 4 Impale 15 | . . . . . . . 2 4 . . . . . . . . . . . . 1 . . . . . . 1 2 2 3 . . . . . . . . Melee Attacks 403 | . . . . . . . 29 28 . . . . 1 . . 7 . 1 4 . 10 . 3 1 . 9 4 6 9 10 23 6 11 9 13 21 10 108 80 Impact 7 | . . . . . . . . . . . . . 1 . . 6 . . . . . . . . . . . . . . . . . . . . . . . Slashing 230 | . . . . . . . . . . . . . . . . . . . . . . . . . . 1 . . . . . . . 2 13 17 10 107 80 Piercing 166 | . . . . . . . 29 28 . . . . . . . 1 . 1 4 . 10 . 3 1 . 8 4 6 9 10 23 6 11 7 . 4 . 1 . Sneak Attacks 50 | . . . . . . . 7 9 . . . . 1 . . . . 1 . . 1 . 3 . . 3 . 6 1 1 6 . . 1 1 2 1 6 . Combat Hostiles . | . . . . . . . . . . . . . . . . . . . . . . . . . . . . . . . . . . . . . . . . Follow-up Attacks . | . . . . . . . . . . . . . . . . . . . . . . . . . . . . . . . . . . . . . . . . Damage Inflicted 35715 | 156 334 815 1293 39 . 120 3229 1109 155 . . . 137 . . . . 68 35 . 701 638 200 . . 247 55 312 459 1791 1009 333 . 100 255 333 132 11352 10308 Guns 7588 | 156 177 185 1003 . . 107 1787 328 . . . . 69 . . . . . . . . . . . . . . . . . . . . . . 91 . 1198 2487 Cannons 5698 | . . . . . . . . . . . . . . . . . . . . . . . . . . . . . . . . . . . . . . . 5698 Explosions 4550 | . 121 559 220 . . . 635 . 155 . . . . . . . . . . . 449 638 . . . . . . . 1502 . 271 . . . . . . . Melee 16392 | . . . . . . . 807 781 . . . . 68 . . . . 68 35 . 252 . 200 . . 247 55 312 459 289 1009 62 . 100 255 242 132 8896 2123 Ramming 229 | . 36 71 70 39 . 13 . . . . . . . . . . . . . . . . . . . . . . . . . . . . . . . . . Kinetic 11929 | 156 177 185 1003 . . 107 1787 328 . . . . 69 . . . . . . . . . . . . . . . . . . . . . . 91 . 178 7848 Thermal 3005 | . . . . . . . 555 . . . . . . . . . . . . . 172 . . . . . . . . . . . . . . . . 2278 . Explosive 2241 | . 121 559 220 . . . . . 155 . . . . . . . . . . . 277 638 . . . . . . . . . 271 . . . . . . . Electromagnetic 1919 | . . . . . . . 80 . . . . . . . . . . . . . . . . . . . . . . 1502 . . . . . . . . 337 Impact 68 | . . . . . . . . . . . . . 68 . . . . . . . . . . . . . . . . . . . . . . . . . . Slashing 11648 | . . . . . . . . . . . . . . . . . . . . . . . . . . . . . . . . . . . 255 242 132 8896 2123 Piercing 4676 | . . . . . . . 807 781 . . . . . . . . . 68 35 . 252 . 200 . . 247 55 312 459 289 1009 62 . 100 . . . . . Highest Corruption 9 | . . . . . . . . . . . . . 1 1 5 5 . . . . 9 7 4 4 . . . . . 2 . . . . . . . . . Average Corruption 4 | . . . . . . . . . . . . . 1 1 1 5 . . . . 8 4 4 4 . . . . . 2 . . . . . . . . . Corruption Purged 5 | . . . . . . . . . . . . . . . . . . . . . 2 3 . . . . . . . . . . . . . . . . . Corruption Blocked 60 | . . . . . . . . . . . . . . . . . . . . . . . . . . . . . . . . . . . 60 . . . . Effects 17 | . . . . . . . . . . . . . 1 1 1 . . . . . 9 2 3 . . . . . . . . . . . . . . . . Message Errors 5 | . . . . . . . . . . . . . . 1 . . . . . . 3 . 1 . . . . . . . . . . . . . . . . Matter Fused 2 | . . . . . . . . . . . . . 1 . . . . . . . . . 1 . . . . . . . . . . . . . . . . Heat Flow Errors 4 | . . . . . . . . . . . . . . . . . . . . . 2 1 1 . . . . . . . . . . . . . . . . Energy Discharges 2 | . . . . . . . . . . . . . . . . . . . . . 1 1 . . . . . . . . . . . . . . . . . Data Loss (minor) 3 | . . . . . . . . . . . . . . . . . . . . . 3 . . . . . . . . . . . . . . . . . . Alerts 1 | . . . . . . . . . . . . . . . 1 . . . . . . . . . . . . . . . . . . . . . . . . Overload Shots . | . . . . . . . . . . . . . . . . . . . . . . . . . . . . . . . . . . . . . . . . Overflow Damage 2066 | . . 18 49 . . . 154 161 50 . . . 28 . . . . 28 . . 219 14 176 . . 81 . 95 69 83 108 . . . 45 . . 627 61 Projectiles 61 | . . . . . . . . . . . . . . . . . . . . . . . . . . . . . . . . . . . . . . 31 30 Explosions 438 | . . 18 49 . . . 125 . 50 . . . . . . . . . . . 134 14 . . . . . . . 48 . . . . . . . . . Melee 1567 | . . . . . . . 29 161 . . . . 28 . . . . 28 . . 85 . 176 . . 81 . 95 69 35 108 . . . 45 . . 596 31 Knockbacks 21 | . . 1 1 1 . 1 . . . . . . . . . . . . . . . . . . . . . . . . . . . . . . . . 17 Impact 4 | . . 1 1 1 . 1 . . . . . . . . . . . . . . . . . . . . . . . . . . . . . . . . . Kinetic 17 | . . . . . . . . . . . . . . . . . . . . . . . . . . . . . . . . . . . . . . . 17 Secondary . | . . . . . . . . . . . . . . . . . . . . . . . . . . . . . . . . . . . . . . . . Self-Inflicted Damage 327 | . . 57 . . . . . . 68 . . . . . . . . . . . 88 . . . . . . . . 106 . . . . . . . 8 . Shots 9 | . . 2 . . . . . . 3 . . . . . . . . . . . 2 . . . . . . . . 1 . . . . . . . 1 . Rammed 33 | . 9 8 12 3 . 1 . . . . . . . . . . . . . . . . . . . . . . . . . . . . . . . . . Targets Rammed 40 | . 11 8 13 6 . 2 . . . . . . . . . . . . . . . . . . . . . . . . . . . . . . . . . Kicked . | . . . . . . . . . . . . . . . . . . . . . . . . . . . . . . . . . . . . . . . . Crushed 7 | . 2 . 1 3 . 1 . . . . . . . . . . . . . . . . . . . . . . . . . . . . . . . . . Highest Temperature 226 | . 120 54 36 . . . . . 5 . . . 34 34 100 1 137 54 . 19 181 103 182 60 . . . . . 210 24 20 5 212 226 160 . 216 68 Average Temperature 45 | . 36 28 11 . . . . . 5 . . . 13 15 28 1 50 16 . 11 45 62 95 31 . . . . . 121 10 13 3 75 68 51 . 36 22 Received Heat Transfer 749 | . 30 54 149 . . 9 36 30 12 . . . . . . . 54 27 9 . 18 9 9 . 9 . 33 . . . 21 21 . . 45 18 27 41 88 Siege Activations 2 | . . . . . . . . . . . . . . . . . . . . . . . . . . . . . . . . . . . . . . . 2 Total Turns 72 | . . . . . . . . . . . . . . . . . . . . . . . . . . . . . . . . . . . . . . . 72 Longest Duration 56 | . . . . . . . . . . . . . . . . . . . . . . . . . . . . . . . . . . . . . . . 56 Robots Corrupted 4 | . . . . . . . . . . . . . . . . . . . . . . . . . . . . . . 1 . . . . . . . . 3 Combat Hostiles 4 | . . . . . . . . . . . . . . . . . . . . . . . . . . . . . . 1 . . . . . . . . 3 Parts Fried 16 | . . . . 1 . . 1 . . . . . 1 . . . . . . . . . . . . . . . . 8 . . . . . . . . 5 Impact Corruptions 3 | . . . 1 1 . . . . . . . . 1 . . . . . . . . . . . . . . . . . . . . . . . . . . Robots Melted . | . . . . . . . . . . . . . . . . . . . . . . . . . . . . . . . . . . . . . . . . Combat Hostiles . | . . . . . . . . . . . . . . . . . . . . . . . . . . . . . . . . . . . . . . . . Parts Melted . | . . . . . . . . . . . . . . . . . . . . . . . . . . . . . . . . . . . . . . . . Heat Transferred 1621 | . . . . . . . 350 . . . . . . . . . . . . . 100 . . . . . . . . . . . . . . . . 1171 . Parts Sabotaged . | . . . . . . . . . . . . . . . . . . . . . . . . . . . . . . . . . . . . . . . . Parts Stolen 1 | . . . . . . . . . . . . . . 1 . . . . . . . . . . . . . . . . . . . . . . . . . Parts Stripped . | . . . . . . . . . . . . . . . . . . . . . . . . . . . . . . . . . . . . . . . . Power Chain Reactions 2 | . . . . . . . . . . . . . . . . . . . . . . . . . . . . . . . . . . . . . . 2 . Missiles Intercepted 10 | . . . . . . . . . . . . . . . . . . . . . . . . . . . . . . . . . . . . . . 10 . Alert | -11 -10 -10 -9 -9 -9 -8 -8 -7 -7 -7 -7 -6 -6 -6 -6 -6 -6 -5 -5 -5 -5 -5 -5 -5 -4 -4 -4 -4 -4 -4 -3 -3 -3 -2 -2 -2 -1 -1 -1 ------- Run | Scr Mat Min Mat Min Exi Min Mat Fac Low Low Dat Pro Fac Low Low Zio Dee Pro Fac Was Fac Upp Upp War Pro Fac Ext Cet Arc Hub Res Arm Lab Res Tes Sec Acc Com Ac0 Peak Influence 998 | 25 221 156 416 105 . 51 409 399 . . . . 80 . . . . . 150 82 321 . . . . 141 678 701 289 843 712 998 . 357 471 656 447 407 . Initial 442 | . 16 5 . 105 . . . 95 . . . . 9 . . . . . 94 52 57 . . . . 65 9 210 264 100 442 147 . . 200 162 336 285 . Average 204 | 15 65 34 277 41 . 30 125 223 . . . . 57 . . . . . 121 73 101 . . . . 88 299 519 274 147 536 551 . 233 316 335 228 281 . Maximum Alert Level 3 | . 1 . 2 . . . 2 1 . . . . . . . . . . . . 1 . . . . . 2 3 1 3 3 3 . 1 2 2 2 2 . Low Security (%) 48 | 100 95 100 13 100 . 100 67 49 . . . . 100 . . . . . 100 100 96 . . . . 100 23 1 . 91 . 12 . 35 12 20 29 8 . Level 1 30 | . 4 . 82 . . . 31 50 . . . . . . . . . . . . 3 . . . . . 52 11 100 4 27 11 . 64 82 52 65 39 . Level 2 18 | . . . 4 . . . . . . . . . . . . . . . . . . . . . . . 23 73 . . 47 49 . . 4 26 4 51 . Level 3 2 | . . . . . . . . . . . . . . . . . . . . . . . . . . . . 14 . 4 25 26 . . . . . . . Level 4 . | . . . . . . . . . . . . . . . . . . . . . . . . . . . . . . . . . . . . . . . . Level 5 . | . . . . . . . . . . . . . . . . . . . . . . . . . . . . . . . . . . . . . . . . High Security . | . . . . . . . . . . . . . . . . . . . . . . . . . . . . . . . . . . . . . . . . Max Security . | . . . . . . . . . . . . . . . . . . . . . . . . . . . . . . . . . . . . . . . . Squads Dispatched 50 | . 2 . 1 . . . . 12 . . . . 1 . 1 . . . 3 . 3 . . . . . 1 . . 3 2 . . 1 10 4 3 3 . Investigation 12 | . 1 . . . . . . 4 . . . . . . . . . . 2 . 1 . . . . . . . . 1 1 . . . 2 . . . . Extermination 4 | . . . . . . . . 1 . . . . . . . . . . . . . . . . . . . . . . . . . . 1 . . 2 . Reinforcement 30 | . 1 . 1 . . . . 5 . . . . 1 . . . . . 1 . 2 . . . . . 1 . . 2 1 . . 1 6 4 3 1 . Assault 2 | . . . . . . . . . . . . . . . 1 . . . . . . . . . . . . . . . . . . . 1 . . . . Garrison 2 | . . . . . . . . 2 . . . . . . . . . . . . . . . . . . . . . . . . . . . . . . . Intercept . | . . . . . . . . . . . . . . . . . . . . . . . . . . . . . . . . . . . . . . . . Searches Triggered 1 | . . . . . . . . . . . . . . . . . . . . . . . . . . . . . . . . . . . 1 . . . . Data Miner Redirects 2 | . . . . . . . . . . . . . . . . . . . 1 . . . . . . . . . . . . . . . 1 . . . . Construction Impeded 3 | . . . . . . . . 2 . . . . . . . . . . . . 1 . . . . . . . . . . . . . . . . . . Haulers Reinforced 2 | . . . . . . . . . . . . . . . . . . . . . . . . . . . . . . 1 . . . . 1 . . . . Active Scanning Responses . | . . . . . . . . . . . . . . . . . . . . . . . . . . . . . . . . . . . . . . . . Cargo Convoy Interrupts . | . . . . . . . . . . . . . . . . . . . . . . . . . . . . . . . . . . . . . . . . Stealth | -11 -10 -10 -9 -9 -9 -8 -8 -7 -7 -7 -7 -6 -6 -6 -6 -6 -6 -5 -5 -5 -5 -5 -5 -5 -4 -4 -4 -4 -4 -4 -3 -3 -3 -2 -2 -2 -1 -1 -1 --------- Run | Scr Mat Min Mat Min Exi Min Mat Fac Low Low Dat Pro Fac Low Low Zio Dee Pro Fac Was Fac Upp Upp War Pro Fac Ext Cet Arc Hub Res Arm Lab Res Tes Sec Acc Com Ac0 Distress Signals 51 | . 1 . 1 . . . 3 . . . . . . . . . . . . . . . . 2 . . 5 2 . . 7 6 . 6 . 4 . 14 . Communications Jammed . | . . . . . . . . . . . . . . . . . . . . . . . . . . . . . . . . . . . . . . . . Distress Signals . | . . . . . . . . . . . . . . . . . . . . . . . . . . . . . . . . . . . . . . . . Times Spotted 509 | . 14 11 23 2 . 3 27 11 6 1 . 3 3 9 21 . 7 9 8 3 17 11 10 11 8 . 16 12 . 4 20 44 . 16 23 51 19 40 46 Peak Tracking Total 24 | . 4 6 5 2 . 3 8 3 3 1 . 4 1 6 14 . 6 7 7 3 6 9 5 5 8 . 3 7 . 3 5 19 . 6 9 24 12 6 14 Tactical Retreats 77 | . . . . . . . 5 5 2 1 . 1 . . 5 . . 4 1 . 1 2 2 . 3 . 1 . . . 6 9 . 4 3 8 2 5 7 Traps | -11 -10 -10 -9 -9 -9 -8 -8 -7 -7 -7 -7 -6 -6 -6 -6 -6 -6 -5 -5 -5 -5 -5 -5 -5 -4 -4 -4 -4 -4 -4 -3 -3 -3 -2 -2 -2 -1 -1 -1 ------- Run | Scr Mat Min Mat Min Exi Min Mat Fac Low Low Dat Pro Fac Low Low Zio Dee Pro Fac Was Fac Upp Upp War Pro Fac Ext Cet Arc Hub Res Arm Lab Res Tes Sec Acc Com Ac0 Traps Triggered 13 | . . . 2 1 . . . . . . . . 1 . . . . . 1 . 1 . . . . . . . . 1 1 4 . . . . . 1 . Indirectly . | . . . . . . . . . . . . . . . . . . . . . . . . . . . . . . . . . . . . . . . . Trap Hack Attempts . | . . . . . . . . . . . . . . . . . . . . . . . . . . . . . . . . . . . . . . . . Triggered . | . . . . . . . . . . . . . . . . . . . . . . . . . . . . . . . . . . . . . . . . Disarmed 7 | . . . . . . . . . . . . . . . . . . . . . . . . . . . . . . . . . . 1 6 . . . . Reprogrammed . | . . . . . . . . . . . . . . . . . . . . . . . . . . . . . . . . . . . . . . . . Reused . | . . . . . . . . . . . . . . . . . . . . . . . . . . . . . . . . . . . . . . . . Traps Extracted . | . . . . . . . . . . . . . . . . . . . . . . . . . . . . . . . . . . . . . . . . Installed . | . . . . . . . . . . . . . . . . . . . . . . . . . . . . . . . . . . . . . . . . Triggered 14 | . . . . . . . . . 1 . . . . . . . . . . . . . . 13 . . . . . . . . . . . . . . . Exploded 1 | . . . . . 1 . . . . . . . . . . . . . . . . . . . . . . . . . . . . . . . . . . Machines | -11 -10 -10 -9 -9 -9 -8 -8 -7 -7 -7 -7 -6 -6 -6 -6 -6 -6 -5 -5 -5 -5 -5 -5 -5 -4 -4 -4 -4 -4 -4 -3 -3 -3 -2 -2 -2 -1 -1 -1 ---------- Run | Scr Mat Min Mat Min Exi Min Mat Fac Low Low Dat Pro Fac Low Low Zio Dee Pro Fac Was Fac Upp Upp War Pro Fac Ext Cet Arc Hub Res Arm Lab Res Tes Sec Acc Com Ac0 Machines Disabled 56 | . 1 . . . . . 7 1 . . . . . . . 2 1 . . . 2 . . 1 . . 1 . 1 13 . 1 1 . 11 6 . 3 4 Max in Single Turn 13 | . 1 . . . . . 1 1 . . . . . . . 1 . . . . 2 . . 1 . . . . 1 13 . 1 1 . 1 1 . 1 1 Garrison Access 9 | . . . . . . . . . . . . . 1 . . . . . . . 1 . . . . . . . . . 4 . . 3 . . . . . Network Hub 2 | . . . . . . . . . . . . . . . . . . . . . . . . . . . . . . 2 . . . . . . . . . Machines Sabotaged 1 | . . . . . . . . . . . . . . . . . . . . . . . . . . . . . . 1 . . . . . . . . . Garrisons Compromised . | . . . . . . . . . . . . . . . . . . . . . . . . . . . . . . . . . . . . . . . . Overloaded Fab Kills . | . . . . . . . . . . . . . . . . . . . . . . . . . . . . . . . . . . . . . . . . Hacking | -11 -10 -10 -9 -9 -9 -8 -8 -7 -7 -7 -7 -6 -6 -6 -6 -6 -6 -5 -5 -5 -5 -5 -5 -5 -4 -4 -4 -4 -4 -4 -3 -3 -3 -2 -2 -2 -1 -1 -1 --------- Run | Scr Mat Min Mat Min Exi Min Mat Fac Low Low Dat Pro Fac Low Low Zio Dee Pro Fac Was Fac Upp Upp War Pro Fac Ext Cet Arc Hub Res Arm Lab Res Tes Sec Acc Com Ac0 Machines Accessed 124 | . 2 . 6 1 2 1 10 9 . 2 4 . 1 . . . . . 2 . 7 . . 3 . 4 9 1 . 1 10 5 . 7 11 11 6 9 . Terminals 80 | . 1 . 5 . . 1 7 5 . . . . . . . . . . . . 5 . . . . 3 9 1 . 1 6 4 . 4 6 9 6 7 . Fabricators 2 | . . . . . . . . . . . . . . . . . . . . . . . . . . . . . . . . . . . 2 . . . . Repair Stations 8 | . . . . . . . 1 . . . . . . . . . . . 1 . 1 . . . . 1 . . . . . 1 . . 2 . . 1 . Recycling Units 5 | . 1 . . . . . . 3 . . . . . . . . . . . . . . . . . . . . . . . . . . . . . 1 . Scanalyzers 7 | . . . 1 . . . 2 . . . . . . . . . . . . . . . . . . . . . . . 1 . . . 1 2 . . . Garrison Access 10 | . . . . . . . . 1 . . . . 1 . . . . . 1 . 1 . . . . . . . . . 3 . . 3 . . . . . Total Hacks 567 | . 7 . 20 1 2 1 28 30 . 11 25 . 1 . . . . . 5 . 16 . . 6 . 20 40 4 . 9 57 19 . 55 50 52 73 35 . Successful 285 | . 4 . 8 1 2 1 17 15 . 11 25 . 1 . . . . . . . 6 . . 6 . 9 21 1 . 7 21 13 . 23 26 25 30 12 . Failed 282 | . 3 . 12 . . . 11 15 . . . . . . . . . . 5 . 10 . . . . 11 19 3 . 2 36 6 . 32 24 27 43 23 . Catastrophic 42 | . 1 . 2 . . . 1 2 . . . . . . . . . . . . 1 . . . . . 3 1 . 1 11 . . 4 3 3 5 4 . Database Lockouts . | . . . . . . . . . . . . . . . . . . . . . . . . . . . . . . . . . . . . . . . . Manual 189 | . 3 . 14 . 1 1 22 16 . . . . . . . . . . 1 . 7 . . 1 . 6 24 1 . 7 7 8 . 17 10 22 15 6 . Terminals 458 | . 6 . 18 . . 1 24 24 . . . . . . . . . . . . 13 . . . . 19 40 4 . 9 47 17 . 50 35 47 73 31 . Fabricators 5 | . . . . . . . . . . . . . . . . . . . . . . . . . . . . . . . . . . . 5 . . . . Repair Stations 18 | . . . . . . . 1 . . . . . . . . . . . 3 . 2 . . . . 1 . . . . . 2 . . 6 . . 3 . Recycling Units 5 | . 1 . . . . . . 3 . . . . . . . . . . . . . . . . . . . . . . . . . . . . . 1 . Scanalyzers 17 | . . . 2 . . . 3 . . . . . . . . . . . . . . . . . . . . . . . 3 . . . 4 5 . . . Garrison Access 19 | . . . . . . . . 3 . . . . 1 . . . . . 2 . 1 . . . . . . . . . 7 . . 5 . . . . . Terminal Hacks 212 | . 3 . 6 1 2 1 10 10 . 11 25 . . . . . . . . . 4 . . 6 . 6 20 1 . 4 14 8 . 15 16 17 24 8 . Record 19 | . . . . . 1 . . . . 10 6 . . . . . . . . . . . . . . . . . . . 1 . . 1 . . . . . Part Schematic 17 | . . . . . . 1 . . . . 12 . . . . . . . . . . . . . . . 1 . . . 1 . . 1 1 . . . . Robot Schematic 4 | . . . . . . . . . . . 4 . . . . . . . . . . . . . . . . . . . . . . . . . . . . Robot Analysis 2 | . . . . . . . . . . . . . . . . . . . . . . . . . . . . . . . . . . . . . 2 . . Prototype ID Bank 25 | . . . . . . . . 2 . . 3 . . . . . . . . . 1 . . 4 . 1 3 . . . 1 3 . 2 2 1 1 1 . Open Door 10 | . . . . 1 . . . . . 1 . . . . . . . . . . . . . 2 . . . 1 . . . 1 . . . 3 . 1 . Open DSF 1 | . . . . . . . . 1 . . . . . . . . . . . . . . . . . . . . . . . . . . . . . . . Level Access Points 7 | . . . . . . . 1 . . . . . . . . . . . . . . . . . . . . . . 1 1 . . . 1 2 1 . . Branch Access Points 7 | . 1 . . . . . . 1 . . . . . . . . . . . . 1 . . . . 1 . . . . 1 . . 1 . . 1 . . Emergency Access Points 4 | . . . . . . . . . . . . . . . . . . . . . . . . . . . . . . . 1 1 . . 1 . 1 . . Machine Index 5 | . . . . . . . . 1 . . . . . . . . . . . . . . . . . 1 . . . . 1 . . 1 . . 1 . . Terminal Index 4 | . . . . . . . . . . . . . . . . . . . . . 1 . . . . . 1 . . 1 . . . . . 1 . . . Fabricator Index 2 | . . . . . . . . . . . . . . . . . . . . . . . . . . . 1 . . . 1 . . . . . . . . Repair Station Index 2 | . . . . . . . . . . . . . . . . . . . . . . . . . . . . . . . . 1 . . . . 1 . . Recycling Unit Index 2 | . . . 1 . . . 1 . . . . . . . . . . . . . . . . . . . . . . . . . . . . . . . . Scanalyzer Index 1 | . . . . . . . . . . . . . . . . . . . . . . . . . . . . . . . . . . . . 1 . . . Alert Level 24 | . . . 2 . . . 2 1 . . . . . . . . . . . . . . . . . . 6 . . 1 2 1 . . 2 4 2 1 . Unreport Threat 13 | . . . . . . . 2 . . . . . . . . . . . . . . . . . . 1 2 . . . 2 . . . 2 2 2 . . Locate Traps 11 | . . . . . . . 1 . . . . . . . . . . . . . 1 . . . . . 3 . . 1 1 . . . 2 1 . 1 . Disarm Traps 3 | . . . . . . . . . . . . . . . . . . . . . . . . . . . . . . . . . . 2 1 . . . . Dispatch Records 1 | . . . . . . . . . . . . . . . . . . . . . . . . . . . . . . . . . . . . . 1 . . Maintenance Status 1 | . . . 1 . . . . . . . . . . . . . . . . . . . . . . . . . . . . . . . . . . . . Security Status 2 | . . . . . . . . . . . . . . . . . . . . . . . . . . . . . . . . . . . . . 1 1 . Patrol Status 8 | . . . 1 . . . . 1 . . . . . . . . . . . . . . . . . . . . . . . . . 2 . . 3 1 . Transport Status 1 | . . . . . . . 1 . . . . . . . . . . . . . . . . . . . . . . . . . . . . . . . . Recall Investigation 2 | . . . . . . . . 1 . . . . . . . . . . . . . . . . . . . . . . . . . . . . 1 . . Recall Extermination 1 | . . . . . . . . . . . . . . . . . . . . . . . . . . . . . . . . . . . 1 . . . . Recall Reinforcements 2 | . 1 . . . . . . . . . . . . . . . . . . . . . . . . . 1 . . . . . . . . . . . . Hauler Manifests 7 | . . . 1 . . . 1 1 . . . . . . . . . . . . . . . . . 1 1 . . . . . . 1 . . 1 . . Registered Components 5 | . 1 . . . . . 1 . . . . . . . . . . . . . . . . . . 1 . . . . 1 . . 1 . . . . . Zone Layout 15 | . . . . . . . . 1 . . . . . . . . . . . . . . . . . . 1 . . . . 1 . 3 2 2 5 . . EX-Prototype ID Bank 1 | . . . . . 1 . . . . . . . . . . . . . . . . . . . . . . . . . . . . . . . . . . Protovariant Controls 1 | . . . . . . . . . . . . . . . . . . . . . . . . . . . . . . . . . . . 1 . . . . Disengage Seal 2 | . . . . . . . . . . . . . . . . . . . . . . . . . . . . . . . . . . . . . . 2 . Fabricator Hacks 4 | . . . . . . . . . . . . . . . . . . . . . . . . . . . . . . . . . . . 4 . . . . Load Schematic 2 | . . . . . . . . . . . . . . . . . . . . . . . . . . . . . . . . . . . 2 . . . . Build 2 | . . . . . . . . . . . . . . . . . . . . . . . . . . . . . . . . . . . 2 . . . . Repair Station Hacks 6 | . . . . . . . 1 . . . . . . . . . . . . . . . . . . 1 . . . . . 1 . . 1 . . 2 . Scan Component 1 | . . . . . . . . . . . . . . . . . . . . . . . . . . . . . . . . . . . . . . 1 . Repair 1 | . . . . . . . . . . . . . . . . . . . . . . . . . . . . . . . . . . . . . . 1 . Refit 4 | . . . . . . . 1 . . . . . . . . . . . . . . . . . . 1 . . . . . 1 . . 1 . . . . Recycling Unit Hacks . | . . . . . . . . . . . . . . . . . . . . . . . . . . . . . . . . . . . . . . . . Scanalyzer 12 | . . . 2 . . . 3 . . . . . . . . . . . . . . . . . . . . . . . 2 . . . 2 3 . . . Insert Component 9 | . . . 1 . . . 2 . . . . . . . . . . . . . . . . . . . . . . . 1 . . . 2 3 . . . Analyze 3 | . . . 1 . . . 1 . . . . . . . . . . . . . . . . . . . . . . . 1 . . . . . . . . Garrison Access Hacks 8 | . . . . . . . . . . . . . 1 . . . . . . . 1 . . . . . . . . . 3 . . 3 . . . . . Seal Access 8 | . . . . . . . . . . . . . 1 . . . . . . . 1 . . . . . . . . . 3 . . 3 . . . . . Unauthorized Hacks 43 | . 1 . . . . . 3 5 . . . . . . . . . . . . 1 . . . . 2 1 . . 3 2 4 . 5 3 5 6 2 . Terminals 35 | . . . . . . . 3 . . . . . . . . . . . . . 1 . . . . 2 1 . . 3 2 4 . 5 2 5 6 1 . Track 8 | . . . . . . . . . . . . . . . . . . . . . . . . . . . . . . . . 1 . 1 . 3 3 . . Assimilate 6 | . . . . . . . . . . . . . . . . . . . . . 1 . . . . . 1 . . . 1 . . 1 . 1 1 . . Botnet 7 | . . . . . . . . . . . . . . . . . . . . . . . . . . 1 . . . . . . . 2 2 . 1 1 . Detonate 5 | . . . . . . . 2 . . . . . . . . . . . . . . . . . . . . . . 1 . 2 . . . . . . . Disrupt 3 | . . . . . . . 1 . . . . . . . . . . . . . . . . . . . . . . . 1 1 . . . . . . . Operators 5 | . . . . . . . . . . . . . . . . . . . . . . . . . . 1 . . . 1 . . . 1 . 1 1 . . Sabotage 1 | . . . . . . . . . . . . . . . . . . . . . . . . . . . . . . 1 . . . . . . . . . Fabricators . | . . . . . . . . . . . . . . . . . . . . . . . . . . . . . . . . . . . . . . . . Repair Stations . | . . . . . . . . . . . . . . . . . . . . . . . . . . . . . . . . . . . . . . . . Recycling Units 5 | . 1 . . . . . . 3 . . . . . . . . . . . . . . . . . . . . . . . . . . . . . 1 . Mask 1 | . . . . . . . . . . . . . . . . . . . . . . . . . . . . . . . . . . . . . . 1 . Tunnel 4 | . 1 . . . . . . 3 . . . . . . . . . . . . . . . . . . . . . . . . . . . . . . . Scanalyzers 1 | . . . . . . . . . . . . . . . . . . . . . . . . . . . . . . . . . . . 1 . . . . Researchers 1 | . . . . . . . . . . . . . . . . . . . . . . . . . . . . . . . . . . . 1 . . . . Garrison Access 2 | . . . . . . . . 2 . . . . . . . . . . . . . . . . . . . . . . . . . . . . . . . Broadcast 1 | . . . . . . . . 1 . . . . . . . . . . . . . . . . . . . . . . . . . . . . . . . Reprogram 1 | . . . . . . . . 1 . . . . . . . . . . . . . . . . . . . . . . . . . . . . . . . Data Cores Recovered . | . . . . . . . . . . . . . . . . . . . . . . . . . . . . . . . . . . . . . . . . Used . | . . . . . . . . . . . . . . . . . . . . . . . . . . . . . . . . . . . . . . . . Hacking Detections 68 | . 1 . 4 . . 1 7 3 . . . . . . . . . . 2 . 6 . . . . 4 8 1 . . 6 2 . 3 3 5 6 6 . Full Trace Events 5 | . . . . . . . . . . . . . . . . . . . 2 . 1 . . . . . . . . . . . . . 2 . . . . Feedback Events . | . . . . . . . . . . . . . . . . . . . . . . . . . . . . . . . . . . . . . . . . Feedback Blocked . | . . . . . . . . . . . . . . . . . . . . . . . . . . . . . . . . . . . . . . . . Robot Schematics Acquired 9 | . . . . . . . . . . . 4 . . . . 3 . . . . . . . . . . . . . . . . . . 2 . . . . Robots Built . | . . . . . . . . . . . . . . . . . . . . . . . . . . . . . . . . . . . . . . . . Authchips . | . . . . . . . . . . . . . . . . . . . . . . . . . . . . . . . . . . . . . . . . Time . | . . . . . . . . . . . . . . . . . . . . . . . . . . . . . . . . . . . . . . . . Total Robot Build Rating . | . . . . . . . . . . . . . . . . . . . . . . . . . . . . . . . . . . . . . . . . Part Schematics Acquired 35 | . . . 1 . . 1 1 . . . 12 . . . . 15 . . . . . . . . . . 1 . . . 2 . . 1 1 . . . . Parts Built 2 | . . . . . . . . . . . . . . . . . . . . . . . . . . . . . . . . . . . 2 . . . . Authchips . | . . . . . . . . . . . . . . . . . . . . . . . . . . . . . . . . . . . . . . . . Time 444 | . . . . . . . . . . . . . . . . . . . . . . . . . . . . . . . . . . . 444 . . . . Total Part Build Rating 18 | . . . . . . . . . . . . . . . . . . . . . . . . . . . . . . . . . . . 18 . . . . Parts Repaired 1 | . . . . . . . . . . . . . . . . . . . . . . . . . . . . . . . . . . . . . . 1 . Time 36 | . . . . . . . . . . . . . . . . . . . . . . . . . . . . . . . . . . . . . . 36 . Parts Recycled . | . . . . . . . . . . . . . . . . . . . . . . . . . . . . . . . . . . . . . . . . Recycled Matter . | . . . . . . . . . . . . . . . . . . . . . . . . . . . . . . . . . . . . . . . . Retrieved Matter . | . . . . . . . . . . . . . . . . . . . . . . . . . . . . . . . . . . . . . . . . Retrieved Components . | . . . . . . . . . . . . . . . . . . . . . . . . . . . . . . . . . . . . . . . . Parts Scanalyzed 3 | . . . 1 . . . 1 . . . . . . . . . . . . . . . . . . . . . . . 1 . . . . . . . . Part Schematics Acquired 3 | . . . 1 . . . 1 . . . . . . . . . . . . . . . . . . . . . . . 1 . . . . . . . . Parts Damaged . | . . . . . . . . . . . . . . . . . . . . . . . . . . . . . . . . . . . . . . . . Bothacking | -11 -10 -10 -9 -9 -9 -8 -8 -7 -7 -7 -7 -6 -6 -6 -6 -6 -6 -5 -5 -5 -5 -5 -5 -5 -4 -4 -4 -4 -4 -4 -3 -3 -3 -2 -2 -2 -1 -1 -1 ------------ Run | Scr Mat Min Mat Min Exi Min Mat Fac Low Low Dat Pro Fac Low Low Zio Dee Pro Fac Was Fac Upp Upp War Pro Fac Ext Cet Arc Hub Res Arm Lab Res Tes Sec Acc Com Ac0 Used RIF Installer . | . . . . . . . . . . . . . . . . . . . . . . . . . . . . . . . . . . . . . . . . Robots Hacked . | . . . . . . . . . . . . . . . . . . . . . . . . . . . . . . . . . . . . . . . . Non-combat . | . . . . . . . . . . . . . . . . . . . . . . . . . . . . . . . . . . . . . . . . Combat . | . . . . . . . . . . . . . . . . . . . . . . . . . . . . . . . . . . . . . . . . Robot Hacks Applied . | . . . . . . . . . . . . . . . . . . . . . . . . . . . . . . . . . . . . . . . . Relay Couplers Released 5 | . . . . . . . . . . . . . . . . . . . . . . . . . . . . . . . 5 . . . . . . . . Machine Destruction 1 | . . . . . . . . . . . . . . . . . . . . . . . . . . . . . . . 1 . . . . . . . . Programmers 4 | . . . . . . . . . . . . . . . . . . . . . . . . . . . . . . . 4 . . . . . . . . Fabnet Peak Effective % . | . . . . . . . . . . . . . . . . . . . . . . . . . . . . . . . . . . . . . . . . Robots Rewired 15 | . . . . . . . . . . . . . 1 . . . . . . . . . . . . . 13 . . . . . . . 1 . . . . Allies Hacked . | . . . . . . . . . . . . . . . . . . . . . . . . . . . . . . . . . . . . . . . . Hacks Repelled . | . . . . . . . . . . . . . . . . . . . . . . . . . . . . . . . . . . . . . . . . Allies | -11 -10 -10 -9 -9 -9 -8 -8 -7 -7 -7 -7 -6 -6 -6 -6 -6 -6 -5 -5 -5 -5 -5 -5 -5 -4 -4 -4 -4 -4 -4 -3 -3 -3 -2 -2 -2 -1 -1 -1 -------- Run | Scr Mat Min Mat Min Exi Min Mat Fac Low Low Dat Pro Fac Low Low Zio Dee Pro Fac Was Fac Upp Upp War Pro Fac Ext Cet Arc Hub Res Arm Lab Res Tes Sec Acc Com Ac0 Total Allies 50 | . . . . 4 . . . 1 . 3 . 1 1 . . 9 . . . . 1 . . . . . 20 5 . . 1 . . 1 1 1 1 . . Largest Group 12 | . . . . 4 3 3 . 1 . 3 3 1 1 1 . 9 9 . . . 1 . . . . . 12 12 . . 1 . . 1 1 1 1 . . Highest-Rated Group 897 | . . . . 71 40 40 . 21 . 60 60 96 25 22 . 255 255 . . . 10 . . . . . 662 897 . . 45 . . 45 155 26 45 . . Highest-Rated Ally 159 | . . . . 31 16 16 . 21 . 20 20 96 25 22 . 39 39 . . . 10 . . . . . 159 159 . . 45 . . 45 155 26 45 . . Total Orders 5 | . . . . 2 . . . . . . . . . . . . . . . . . . . . . . . 3 . . . . . . . . . . . STAY 1 | . . . . 1 . . . . . . . . . . . . . . . . . . . . . . . . . . . . . . . . . . . ROAM 1 | . . . . . . . . . . . . . . . . . . . . . . . . . . . . 1 . . . . . . . . . . . FOLLOW 3 | . . . . 1 . . . . . . . . . . . . . . . . . . . . . . . 2 . . . . . . . . . . . Ally Attacks 440 | . . . . 18 . 17 . 3 . . . 10 . 12 . . 37 . . . . . . . . . 125 88 . . . . . . 31 . . . 99 Total Damage 13591 | . . . . 151 . 187 . 74 . . . 358 . 167 . . 706 . . . . . . . . . 4038 3060 . . . . . . 1468 . . . 3382 Kills 59 | . . . . 4 . 1 . 1 . . . . . . . . 4 . . . . . . . . . 23 17 . . . . . . 9 . . . . Allies Corrupted 3 | . . . . . . . . . . . . . . . . . . . . . . . . . . . . . . . . . . . . . . . 3 Allies Melted 1 | . . . . . . . . . . . . . . . . . . . . . . . . . . . 1 . . . . . . . . . . . . Turrets Deployed 3 | . . . . . . . . . . . . . . . . . . . . . . . . . . . . . . . . . . . . . . . 3 Intel | -11 -10 -10 -9 -9 -9 -8 -8 -7 -7 -7 -7 -6 -6 -6 -6 -6 -6 -5 -5 -5 -5 -5 -5 -5 -4 -4 -4 -4 -4 -4 -3 -3 -3 -2 -2 -2 -1 -1 -1 ------- Run | Scr Mat Min Mat Min Exi Min Mat Fac Low Low Dat Pro Fac Low Low Zio Dee Pro Fac Was Fac Upp Upp War Pro Fac Ext Cet Arc Hub Res Arm Lab Res Tes Sec Acc Com Ac0 Robot Analysis Total 2 | . . . . . . . . . . . . . . . . . . . . . . . . . . . . . . . . . . . . . 2 . . Derelict Logs Recovered 15 | . . . . 3 . . . . 1 . . 2 . 2 1 2 . 1 . . . 1 1 . 1 . . . . . . . . . . . . . . Drone Launches . | . . . . . . . . . . . . . . . . . . . . . . . . . . . . . . . . . . . . . . . . Drone Recoveries . | . . . . . . . . . . . . . . . . . . . . . . . . . . . . . . . . . . . . . . . . Decoded 0b10 Intel 37 | . . . . . . . . . . . . . . . . . . . 8 1 28 . . . . . . . . . . . . . . . . . . Items 31 | . . . . . . . . . . . . . . . . . . . 8 1 22 . . . . . . . . . . . . . . . . . . Patrols 3 | . . . . . . . . . . . . . . . . . . . . . 3 . . . . . . . . . . . . . . . . . . Guards 3 | . . . . . . . . . . . . . . . . . . . . . 3 . . . . . . . . . . . . . . . . . . Exploration | -11 -10 -10 -9 -9 -9 -8 -8 -7 -7 -7 -7 -6 -6 -6 -6 -6 -6 -5 -5 -5 -5 -5 -5 -5 -4 -4 -4 -4 -4 -4 -3 -3 -3 -2 -2 -2 -1 -1 -1 ------------- Run | Scr Mat Min Mat Min Exi Min Mat Fac Low Low Dat Pro Fac Low Low Zio Dee Pro Fac Was Fac Upp Upp War Pro Fac Ext Cet Arc Hub Res Arm Lab Res Tes Sec Acc Com Ac0 Turns Passed 19372 | 144 876 1254 1015 1139 401 523 904 711 282 229 21 98 188 107 228 479 161 211 131 15 282 97 216 862 73 345 505 263 62 139 938 228 233 298 611 442 167 2893 1601 Spaces Moved 37975 | 58 353 721 534 658 266 275 990 1433 983 633 79 374 421 394 757 1325 363 533 259 60 674 317 585 1305 325 716 613 230 56 349 1952 621 309 1087 1122 1275 841 8326 5803 Core 3 | . . . . . . . . . . . . . . . . . . . . . . . . . . . 1 . . . . . . . . . . . 2 Treads 2728 | . 274 721 534 658 266 275 . . . . . . . . . . . . . . . . . . . . . . . . . . . . . . . . . Legs 146 | 58 79 . . . . . . . . . . . 5 . . . . . . . . . . . . . . . . . . . . . . . . . 4 Wheels . | . . . . . . . . . . . . . . . . . . . . . . . . . . . . . . . . . . . . . . . . Hover 1 | . . . . . . . . . . . . . . . . . . . . . . . . . . . 1 . . . . . . . . . . . . Flight 35035 | . . . . . . . 990 1433 983 633 79 374 416 394 757 1325 363 533 259 60 674 317 585 1305 325 716 611 230 56 349 1952 621 309 1087 1122 1213 841 8326 5797 Fastest Speed 7 | 120 120 160 145 145 145 145 50 26 26 26 26 26 21 21 21 21 21 21 26 21 21 26 26 20 20 23 20 20 26 21 19 21 22 10 10 10 10 7 7 Average Speed 28 | 120 151 160 149 145 145 145 50 39 26 26 26 26 33 25 24 24 23 27 26 22 23 26 26 23 22 23 23 20 43 22 22 22 23 17 10 10 10 11 10 Slowest Speed 450 | 120 160 160 240 225 145 145 50 96 26 26 26 26 190 26 26 26 24 29 29 24 94 26 96 26 23 23 450 93 93 26 27 103 101 96 86 10 89 89 190 Overloaded Moves 127 | . . . . . . . . . . . . . . . . . . . . . . . . . . . . . . . . . . . . . . 3 124 Propulsion Burnouts . | . . . . . . . . . . . . . . . . . . . . . . . . . . . . . . . . . . . . . . . . Robots Hopped 185 | . . . . . . . 2 7 1 . . . 5 3 2 . . . 2 2 5 . 2 2 . 3 7 1 . 5 41 . . 27 9 10 18 18 13 Cave-ins Triggered . | . . . . . . . . . . . . . . . . . . . . . . . . . . . . . . . . . . . . . . . . Teleports 2 | . . . . . . . . . . . . . . . . . . . . . . . . . . . . . . . . . . . . . . 1 1 Spacefolds 24 | . . . . . . . . . . . . . . . . . . . . . . . . . . . . . . . . . . . . 24 . . . Exploration Rate (%) 59 | 3 31 98 53 99 68 40 55 41 91 91 72 64 11 67 81 86 71 76 9 76 26 58 52 89 58 16 77 67 65 33 46 66 95 27 67 74 27 84 79 Regions Visited 39 Branch Regions 27 Pre-discovered Areas 10 | . 1 . . . 1 . . 3 . 2 1 . . . . 2 . . . . . . . . . . . . . . . . . . . . . . . Known Exits Taken 19 | . 1 . . . . . 1 1 1 . . . 1 1 1 1 1 1 . . 1 . . . 1 1 . . . 1 1 . 1 1 . 1 1 . . Unknown Exits Taken 18 | 1 . 1 1 1 1 1 . . . 1 1 1 . . . . . . . . . 1 1 1 . . 1 1 1 . . 1 . . 1 . . 1 . Scrap Searched 24 | . . 1 . 2 . 2 . . 4 1 . 4 . 1 3 2 . 1 . . . 1 1 . 1 . . . . . . . . . . . . . . Spaces Dug 154 | . 5 37 . . . . 6 7 27 . . . . . . 2 . . 3 . 4 . . 1 . 6 . . . 1 2 3 . 6 4 8 9 15 8 Terrain Destroyed 624 | . 6 68 19 . . . 80 9 33 . . . . . . 2 . . 3 . 38 54 . 1 . 6 . . . 166 2 3 . 6 4 8 9 34 73 Melee 85 | . . . . . . . 6 7 . . . . . . . 2 . . 3 . 4 . . 1 . 6 . . . 1 2 3 . 6 4 8 9 15 8 Projectile 97 | . 6 . . . . . 35 2 . . . . . . . . . . . . . . . . . . . . . . . . . . . . . . 54 AOE 429 | . . 68 19 . . . 39 . 33 . . . . . . . . . . . 34 54 . . . . . . . 165 . . . . . . . 17 . Terrain Rammed . | . . . . . . . . . . . . . . . . . . . . . . . . . . . . . . . . . . . . . . . . Walls Destroyed . | . . . . . . . . . . . . . . . . . . . . . . . . . . . . . . . . . . . . . . . . Machines Disabled . | . . . . . . . . . . . . . . . . . . . . . . . . . . . . . . . . . . . . . . . . Actions | -11 -10 -10 -9 -9 -9 -8 -8 -7 -7 -7 -7 -6 -6 -6 -6 -6 -6 -5 -5 -5 -5 -5 -5 -5 -4 -4 -4 -4 -4 -4 -3 -3 -3 -2 -2 -2 -1 -1 -1 --------- Run | Scr Mat Min Mat Min Exi Min Mat Fac Low Low Dat Pro Fac Low Low Zio Dee Pro Fac Was Fac Upp Upp War Pro Fac Ext Cet Arc Hub Res Arm Lab Res Tes Sec Acc Com Ac0 Total 45068 | 105 644 798 680 836 285 399 1362 1535 1004 696 78 374 462 398 795 1470 438 596 312 58 773 328 636 1851 324 876 962 434 77 380 2383 703 454 1156 1586 1491 888 9847 6594 Wait 5029 | 21 215 35 23 161 1 121 286 54 6 64 . . 13 6 38 134 73 57 40 . 66 4 48 516 . 142 271 193 3 11 318 37 106 72 420 202 41 1061 170 Move 37551 | 57 352 720 533 657 265 274 985 1418 980 632 78 373 411 388 752 1324 362 532 255 56 664 316 581 1301 324 709 600 227 55 339 1875 620 308 1036 1103 1217 804 8292 5776 Hop 162 | . . . . . . . 2 7 1 . . . 4 2 2 . . . 2 1 4 . 1 1 . 3 5 1 . 4 35 . . 23 9 9 18 15 13 Pick Up 170 | 2 15 5 15 2 4 1 13 1 2 . . 1 . 1 1 2 . . 2 1 6 . 1 6 . 1 . 1 1 . 7 4 7 1 2 7 1 27 30 Fast Attach 281 | 3 1 . 9 4 1 . 2 4 3 . . . 4 . 1 2 . . 3 . 2 . . 7 . 4 1 1 2 8 34 15 4 6 13 7 4 54 82 Attach 180 | . 2 . 9 2 5 . 16 11 3 . . . 4 1 . 1 . 2 3 . 6 3 1 3 . . 1 1 2 . 13 4 7 3 2 7 4 30 34 Detach 152 | 2 1 . 8 . . . 12 7 3 . . . 5 . 1 . 1 2 1 . 3 2 1 3 . 2 1 2 3 . 19 5 2 2 1 5 3 31 24 Swap 133 | 1 15 9 9 . . . 2 . . . . . . . . . 1 1 . . 5 . . 4 . 1 1 1 1 5 14 1 . 1 2 6 . 20 33 Drop 360 | 2 12 8 19 4 9 1 15 5 2 . . . 1 . . 1 1 1 2 . 6 . . 8 . 5 1 1 1 2 40 12 9 4 18 9 3 73 85 Fire 492 | 17 20 13 42 . . . . . 4 . . . . . . . . . . . 1 3 . 1 . . . . . 1 . . . . . 5 . 118 267 Melee 393 | . . . . . . . 29 28 . . . . 1 . . 6 . 1 4 . 10 . 3 1 . 9 4 6 9 10 21 5 11 8 13 17 10 107 80 Ram . | . . . . . . . . . . . . . . . . . . . . . . . . . . . . . . . . . . . . . . . . Kick . | . . . . . . . . . . . . . . . . . . . . . . . . . . . . . . . . . . . . . . . . Crush 40 | . 11 8 13 6 . 2 . . . . . . . . . . . . . . . . . . . . . . . . . . . . . . . . . Escape Stasis 25 | . . . . . . . . . . . . . . . . . . . . . . . . . . . . . . . 7 . . . . . . 18 . Rewire 100 | . . . . . . . . . . . . . 19 . . . . . . . . . . . . . 77 . . . . . . . 3 . . 1 . Trap . | . . . . . . . . . . . . . . . . . . . . . . . . . . . . . . . . . . . . . . . . Miscellaneous . | . . . . . . . . . . . . . . . . . . . . . . . . . . . . . . . . . . . . . . . . Route ------- -11/Scrapyard -10/Materials -10/Mines (discovered 2 exits: *Mat x2) -9/Materials (discovered 2 exits: *Mat / *Min) -9/Mines (discovered 3 exits: *Mat x2 / *Exi) -9/Exiles -8/Mines -8/Materials (discovered 3 exits: *Fac x3) -7/Factory (discovered 3 exits: *Fac / *Low x2) -7/Lower Caves (discovered 2 exits: *Low / *Zio) -7/Lower Caves (discovered 2 exits: Fac / *Dat) -7/Data Miner -6/Proximity Caves -6/Factory (discovered 2 exits: Fac / *Low) -6/Lower Caves -6/Lower Caves (discovered 2 exits: *Fac / *Zio) -6/Zion (discovered 2 exits: *Dee / [*Pro]) -6/Deep Caves -5/Proximity Caves -5/Factory (discovered 4 exits: Fac x3 / Upp) -5/Waste -5/Factory (discovered 2 exits: *Upp x2) -5/Upper Caves -5/Upper Caves -5/Warlord -4/Proximity Caves -4/Factory (discovered 5 exits: Res / Upp x2 / *Ext x2) -4/Extension (discovered 2 exits: *Res / *Cet) -4/Cetus (discovered 2 exits: *Res / [*Arc]) -4/Archives -4/Hub_04(d) (discovered 4 exits: *Res x4) -3/Research (discovered 6 exits: *Res x3 / *Arm / Qua x2) -3/Armory (discovered 2 exits: Res / [*Lab]) -3/Lab -2/Research (discovered 2 exits: *Tes x2) -2/Testing (discovered 2 exits: Acc / *Sec) -2/Section 7 -1/Access (discovered 2 exits: Sur / *Com) -1/Command (discovered 3 exits: *Sur x2 / [*Ac0]) -1/Access_0 Near Former Tau Ceti IV History --------- Turn | Location | Event 13 | -11/Scrapyard | Discovered new exit (range 3) 145 | -11/Scrapyard | Entered Materials 301 | -10/Materials | Build established: Mutant 489 | -10/Materials | Identified exit to Mines 1021 | -10/Materials | Entered Mines 1182 | -10/Mines | A weapon hastily lodged in a ceiling crevice suddenly fell to the ground 1303 | -10/Mines | Discovered new exit (range 11) 1328 | -10/Mines | Assembled infested the area 1333 | -10/Mines | Assisted by a Guerilla fighting off Assembled 1886 | -10/Mines | Received a Rocket Launcher from a helpful Derelict 1928 | -10/Mines | Discovered new exit (range 10) 2275 | -10/Mines | Entered Materials 2275 | -9/Materials | Evolved 2 slots: Utility x2 3126 | -9/Materials | Discovered new exit (range 10) 3259 | -9/Materials | Discovered new exit (range 7) 3290 | -9/Materials | Entered Mines 3350 | -9/Mines | Assisted by bots powering up and referring to "LRC-V3" 3392 | -9/Mines | Deemed a non-threat by the Exiles lab entrance 3393 | -9/Mines | Discovered new exit (range 5) 3469 | -9/Mines | Learned Materials stockpile data 3484 | -9/Mines | Met a Derelict who couldn't figure out how to use a Trap Extractor 3824 | -9/Mines | Learned location of 1 exit from Lower Caves 3979 | -9/Mines | Received a Mining Laser from a helpful Derelict 4025 | -9/Mines | Learned Materials machine intel 4076 | -9/Mines | Discovered new exit (range 8) 4166 | -9/Mines | Discovered new exit (range 6) 4429 | -9/Mines | Entered Exiles 4429 | -9/Exiles | Accompanied by 3 allies 4466 | -9/Exiles | Met 8R-AWN 4489 | -9/Exiles | Met EX-HEX 4543 | -9/Exiles | Met EX-DEC 4572 | -9/Exiles | Learned location of Zion (-6) 4598 | -9/Exiles | Met EX-BIN 4618 | -9/Exiles | Aligned with FarCom system 4619 | -9/Exiles | Given EX-Vault access code 4653 | -9/Exiles | Opened EX-Vault 4665 | -9/Exiles | Found Deploy-a-Sentry 4667 | -9/Exiles | Found Deploy-a-Sentry 4669 | -9/Exiles | Found Deploy-a-Sentry 4674 | -9/Exiles | Found AWS/Gauss 4684 | -9/Exiles | Found Flying Fortress v7 4719 | -9/Exiles | Warned to stay clear of 0b10 Research branches 4727 | -9/Exiles | Exiles lab attacked by MAIN.C 4816 | -9/Exiles | Discovered new exit (range 11) 4830 | -9/Exiles | Stole three prototypes: AWS/Gauss, Deploy-a-Sentry, Flying Fortress v7 4830 | -9/Exiles | Entered Mines 4830 | -8/Mines | Accompanied by 3 allies 4965 | -8/Mines | Build established: Hacker-Mutant 5260 | -8/Mines | Discovered new exit (range 11) 5353 | -8/Mines | Entered Materials 5353 | -8/Materials | Evolved 2 slots: Propulsion x2 5355 | -8/Materials | Loaded intel: 66 machine locations 5365 | -8/Materials | Identified exit to Factory 5683 | -8/Materials | Destroyed 11 combat bots 6257 | -8/Materials | Entered Factory 6257 | -7/Factory | Evolved 2 slots: Utility x2 6259 | -7/Factory | FarCom data flow suspended 6361 | -7/Factory | Identified exit to DSF 6470 | -7/Factory | Discovered new exit (range 7) 6597 | -7/Factory | Identified exit to Lower Caves 6876 | -7/Factory | Discovered new exit (range 10) 6968 | -7/Factory | Entered Lower Caves 6969 | -7/Lower Caves | Identified exit to Lower Caves 6992 | -7/Lower Caves | Encountered a Warlord checkpoint 7016 | -7/Lower Caves | A Derelict revealed a hidden shortcut to a safe place 7118 | -7/Lower Caves | Spotted B-75 Beast 7214 | -7/Lower Caves | Learned 4 Factory zone layouts 7250 | -7/Lower Caves | Entered another Lower Caves area 7252 | -7/Lower Caves | Encountered a Warlord checkpoint 7261 | -7/Lower Caves | Discovered new exit (range 5) 7269 | -7/Lower Caves | Build established: Sprinter 7391 | -7/Lower Caves | A Commander dispatched an escort 7391 | -7/Lower Caves | Learned location of Extension (-4) 7391 | -7/Lower Caves | Learned 8 Research zone layouts 7391 | -7/Lower Caves | Learned Extension emergency access door positions 7391 | -7/Lower Caves | Learned Research stockpile data 7409 | -7/Lower Caves | Discovered new exit (range 11) 7479 | -7/Lower Caves | Entered Data Miner 7479 | -7/Data Miner | Accompanied by 3 allies 7479 | -7/Data Miner | Discovered new exit (range 6) 7480 | -7/Data Miner | Commander's escort returned to base 7480 | -7/Data Miner | Commander's escort returned to base 7480 | -7/Data Miner | Commander's escort returned to base 7483 | -7/Data Miner | Met Data Miner 7489 | -7/Data Miner | Learned location of Section 7 (-2) 7494 | -7/Data Miner | Received God Mode back door access code from Data Miner 7500 | -7/Data Miner | Entered Proximity Caves 7539 | -6/Proximity Caves | Spotted B-75 Beast 7565 | -6/Proximity Caves | Learned Factory emergency access door positions 7591 | -6/Proximity Caves | Learned Factory security intel 7596 | -6/Proximity Caves | Discovered new exit (range 6) 7598 | -6/Proximity Caves | Entered Factory 7598 | -6/Factory | Evolved 2 slots: Propulsion x2 7599 | -6/Factory | Identified exit to Factory 7705 | -6/Factory | Discovered new exit (range 13) 7709 | -6/Factory | Identified exit to Lower Caves 7786 | -6/Factory | Entered Lower Caves 7786 | -6/Lower Caves | Accompanied by 1 ally 7786 | -6/Lower Caves | Spotted 7Q-DGD(f) 7786 | -6/Lower Caves | Spotted 8S-EVA(f) 7787 | -6/Lower Caves | Encountered a Master Thief 7787 | -6/Lower Caves | Encountered a Master Thief 7787 | -6/Lower Caves | Spotted VA-CTV(f) 7788 | -6/Lower Caves | Encountered a Master Thief 7789 | -6/Lower Caves | AWS/Gauss stolen by Master Thief 7822 | -6/Lower Caves | Encountered a Warlord checkpoint 7835 | -6/Lower Caves | Ambushed by wild Derelicts 7854 | -6/Lower Caves | Spotted B-75 Beast 7854 | -6/Lower Caves | Learned 12 Factory zone layouts 7891 | -6/Lower Caves | Discovered new exit (range 10) 7893 | -6/Lower Caves | Identified exit to Lower Caves 7893 | -6/Lower Caves | Entered another Lower Caves area 7894 | -6/Lower Caves | Discovered exit to Factory (range 14) 8022 | -6/Lower Caves | Spotted 1Z-4EU(f) 8023 | -6/Lower Caves | Spotted 9S-4ZR(f) 8023 | -6/Lower Caves | Spotted M1-PR3(f) 8024 | -6/Lower Caves | Encountered a Master Thief 8024 | -6/Lower Caves | Encountered a Master Thief 8024 | -6/Lower Caves | Spotted SL-20L(f) 8025 | -6/Lower Caves | Encountered a Master Thief 8025 | -6/Lower Caves | Encountered a Master Thief 8025 | -6/Lower Caves | Spotted O6-QXI(f) 8026 | -6/Lower Caves | Encountered a Master Thief 8061 | -6/Lower Caves | Attacked by a faux Warlord 8076 | -6/Lower Caves | Build established: Scout 8077 | -6/Lower Caves | Learned location of 1 exit from Factory 8085 | -6/Lower Caves | Attracted the attention of an 0b10 outpost 8116 | -6/Lower Caves | Discovered new exit (range 16) 8119 | -6/Lower Caves | Identified exit to Zion 8121 | -6/Lower Caves | Entered Zion 8132 | -6/Zion | System corruption cleaned by Quarantine Array 8141 | -6/Zion | Discovered new exit (range 20) 8142 | -6/Zion | Found CR-A16's Pointy Stick 8193 | -6/Zion | Learned location of Warlord (-5) 8202 | -6/Zion | Gained Derelict followers 8242 | -6/Zion | Learned 4 Factory zone layouts 8246 | -6/Zion | Gained Derelict followers 8249 | -6/Zion | Given the Hacking Drone Bay 8252 | -6/Zion | Found Prototype Device 8252 | -6/Zion | Identified Hacking Drone Bay 8277 | -6/Zion | Learned 4 Factory zone layouts 8361 | -6/Zion | Discovered new exit (range 5) 8387 | -6/Zion | Build established: Sprinter 8508 | -6/Zion | Saw the warning signs outside the Deep Caves entrance 8509 | -6/Zion | Identified exit to Deep Caves 8600 | -6/Zion | Entered Deep Caves 8600 | -6/Deep Caves | Accompanied by 9 allies 8715 | -6/Deep Caves | Attacked by Z-Imprinter 8748 | -6/Deep Caves | Spotted as-44277 8752 | -6/Deep Caves | Z-Facility disabled 8760 | -6/Deep Caves | Discovered new exit (range 7) 8761 | -6/Deep Caves | Identified exit to Proximity Caves 8761 | -6/Deep Caves | Entered Proximity Caves 8789 | -5/Proximity Caves | Learned Factory emergency access door positions 8794 | -5/Proximity Caves | Attracted the attention of an 0b10 checkpoint 8846 | -5/Proximity Caves | Spotted B-75 Beast 8960 | -5/Proximity Caves | Discovered exit to Factory (range 17) 8972 | -5/Proximity Caves | Entered Factory 8972 | -5/Factory | Evolved 2 slots: Utility x2 8973 | -5/Factory | Identified exit to Factory 8974 | -5/Factory | Identified exit to Upper Caves 9033 | -5/Factory | Spotted B-75 Beast 9084 | -5/Factory | Incoming investigation squad redirected 9103 | -5/Factory | Manually triggered Chute Trap 9103 | -5/Factory | Sucked down chute 9103 | -5/Factory | Entered Waste 9106 | -5/Waste | Spotted C-40 Crusher 9107 | -5/Waste | Spotted C-40 Crusher 9108 | -5/Waste | Spotted C-40 Crusher 9112 | -5/Waste | Spotted C-40 Crusher 9112 | -5/Waste | Spotted C-40 Crusher 9114 | -5/Waste | Discovered new exit (range 19) 9118 | -5/Waste | EMP discharged 9118 | -5/Waste | Identified exit to Factory 9118 | -5/Waste | Entered Factory 9268 | -5/Factory | Build established: Hacker-Sprinter 9391 | -5/Factory | Spotted B-75 Beast 9400 | -5/Factory | Entered Upper Caves 9423 | -5/Upper Caves | Lost 4 parts (1p2n1u) 9438 | -5/Upper Caves | Learned Factory emergency access door positions 9496 | -5/Upper Caves | Discovered new exit (range 4) 9497 | -5/Upper Caves | Entered another Upper Caves area 9499 | -5/Upper Caves | Learned Factory emergency access door positions 9561 | -5/Upper Caves | Discovered new exit (range 16) 9566 | -5/Upper Caves | Encountered a Warlord checkpoint 9713 | -5/Upper Caves | Entered Warlord 9722 | -5/Warlord | System corruption cleaned by Quarantine Array 9792 | -5/Warlord | Visited the Vortex Lab 9793 | -5/Warlord | Found Prototype Energy Cannon 9793 | -5/Warlord | Identified Vortex Driver 9810 | -5/Warlord | Received a Watcher feed algorithm from an ecstatic Tinkerer 9814 | -5/Warlord | Warlord's base attacked by MAIN.C 9838 | -5/Warlord | Met Warlord 9864 | -5/Warlord | Found Vortex Driver 9900 | -5/Warlord | Found Prototype Hackware 9900 | -5/Warlord | Identified Ghost Barrier 9902 | -5/Warlord | Found Prototype Processor 9902 | -5/Warlord | Identified Exp. Armor Integrity Analyzer 9907 | -5/Warlord | Found Prototype Device 9941 | -5/Warlord | Opened side exit 10138 | -5/Warlord | Identified Exp. Cloaking Device 10164 | -5/Warlord | Warlord forces counterattacked 10178 | -5/Warlord | Spotted Striker 10489 | -5/Warlord | Warlord base infiltrated, sounded retreat 10570 | -5/Warlord | Spotted Striker 10570 | -5/Warlord | Spotted Striker 10572 | -5/Warlord | Discovered new exit (range 15) 10575 | -5/Warlord | Entered Proximity Caves 10598 | -4/Proximity Caves | Learned location of 1 exit from Upper Caves 10641 | -4/Proximity Caves | Discovered exit to Factory (range 20) 10648 | -4/Proximity Caves | Entered Factory 10648 | -4/Factory | Evolved 2 slots: Power x1, Utility x1 10649 | -4/Factory | Identified exit to Research 10736 | -4/Factory | Identified exit to Upper Caves 10736 | -4/Factory | Identified exit to Extension 10896 | -4/Factory | Found Prototype Slashing Weapon 10896 | -4/Factory | Identified Vibroblade 10993 | -4/Factory | Entered Extension 11009 | -4/Extension | Rescued a captive Derelict 11010 | -4/Extension | Rescued a captive Derelict 11052 | -4/Extension | Rescued a captive Derelict 11053 | -4/Extension | Rescued a captive Derelict 11110 | -4/Extension | Rescued A7 11154 | -4/Extension | Spotted B-86 Titan 11156 | -4/Extension | Spotted B-86 Titan 11161 | -4/Extension | Revealed the true nature of CR-A16's Pointy Stick 11164 | -4/Extension | Destroyed B-86 Titan 11174 | -4/Extension | Destroyed B-86 Titan 11385 | -4/Extension | Rescued a captive Derelict 11458 | -4/Extension | Discovered exit to Research (range 10) 11458 | -4/Extension | Discovered new exit (range 6) 11498 | -4/Extension | Entered Cetus 11498 | -4/Cetus | Accompanied by 12 allies (A7) 11503 | -4/Cetus | Acquired a Cetus Manufacturing Module code from A7 11514 | -4/Cetus | Spotted Cetus Guard 11514 | -4/Cetus | Spotted Cetus Guard 11514 | -4/Cetus | Spotted Cetus Guard 11515 | -4/Cetus | Allies destroyed Cetus Guard 11523 | -4/Cetus | Allies destroyed Cetus Guard 11523 | -4/Cetus | Allies destroyed Cetus Guard 11541 | -4/Cetus | Started Cetus Manufacturing Module 11566 | -4/Cetus | Manufactured an Enhanced Grunt 11591 | -4/Cetus | Manufactured an Enhanced Grunt 11616 | -4/Cetus | Manufactured an Enhanced Grunt 11634 | -4/Cetus | Discovered new exit (range 19) 11641 | -4/Cetus | Manufactured an Enhanced Grunt 11666 | -4/Cetus | Manufactured an Enhanced Grunt 11695 | -4/Cetus | Spotted Cetus Guard 11699 | -4/Cetus | Spotted Cetus Guard 11707 | -4/Cetus | Spotted Cetus Guard 11707 | -4/Cetus | Spotted Cetus Guard 11708 | -4/Cetus | Allies destroyed Cetus Guard 11713 | -4/Cetus | Allies destroyed Cetus Guard 11714 | -4/Cetus | Allies destroyed Cetus Guard 11718 | -4/Cetus | Allies destroyed Cetus Guard 11742 | -4/Cetus | Destroyed A7 11745 | -4/Cetus | Extracted ID and sensor layout for unrecognized location from A7's data core 11746 | -4/Cetus | Discovered exit to Research (range 19) 11749 | -4/Cetus | Met Revision 17 11761 | -4/Cetus | Entered Archives 11800 | -4/Archives | Met Zhirov 11804 | -4/Archives | Discovered new exit (range 17) 11806 | -4/Archives | Reinforcements dispatched to Archives 11823 | -4/Archives | Entered Hub_04(d) 11945 | -4/Hub_04(d) | Network Hub disabled 11950 | -4/Hub_04(d) | Spotted Lightning 11950 | -4/Hub_04(d) | Spotted Lightning 11956 | -4/Hub_04(d) | Network Hub disabled 11959 | -4/Hub_04(d) | Found Exp. Hacking Suite 11962 | -4/Hub_04(d) | Entered Research 11962 | -3/Research | Evolved 2 slots: Power x1, Propulsion x1 11963 | -3/Research | Identified exit to Quarantine 12089 | -3/Research | Found Prototype Processor 12089 | -3/Research | Identified Exp. Target Analyzer 12127 | -3/Research | Identified exit to Armory 12162 | -3/Research | Revision forces began assault on 0b10 12453 | -3/Research | Identified exit to Research 12597 | -3/Research | Found Prototype Protection 12597 | -3/Research | Identified Centrium Heavy Armor Plating 12662 | -3/Research | Research terminal network offline 12723 | -3/Research | Found Prototype Launcher 12723 | -3/Research | Identified Mni. Smartbomb Launcher 12747 | -3/Research | Spotted Executioner 12788 | -3/Research | Spotted Striker 12793 | -3/Research | Found Prototype Processor 12793 | -3/Research | Identified Exp. Core Analyzer 12900 | -3/Research | Entered Armory 12918 | -3/Armory | Found Hellfire Missile Launcher 12939 | -3/Armory | Found Prototype Processor 12939 | -3/Armory | Identified Exp. Melee Analysis Suite 13037 | -3/Armory | Spotted B-86 Titan 13039 | -3/Armory | Destroyed B-86 Titan 13088 | -3/Armory | Discovered exit to Research (range 18) 13099 | -3/Armory | Found Prototype Device 13099 | -3/Armory | Identified Exp. Thermal Shield 13127 | -3/Armory | Discovered new exit (range 3) 13128 | -3/Armory | Entered Lab 13128 | -3/Lab | Discovered exit to Research (range 9) 13140 | -3/Lab | Hidden lab's door opened automatically 13140 | -3/Lab | Sensor layout match revealed 13141 | -3/Lab | Gained access to the hidden lab's interior 13162 | -3/Lab | Found Alien Artifact 13162 | -3/Lab | Identified Integrated Reactor 13162 | -3/Lab | Installed Integrated Reactor, increased core energy generation (+10) 13172 | -3/Lab | Found Alien Artifact 13172 | -3/Lab | Identified Core Expander 13172 | -3/Lab | Installed Core Expander, added new Propulsion slot 13183 | -3/Lab | Found Prototype Energy Cannon 13184 | -3/Lab | Found Prototype Energy Gun 13184 | -3/Lab | Identified Hyp. EM Gauss Rifle 13187 | -3/Lab | Found Prototype Device 13188 | -3/Lab | Identified AEGIS Remote Shield 13217 | -3/Lab | Found Alien Artifact 13289 | -3/Lab | Found Prototype Hackware 13361 | -3/Lab | Entered Research 13361 | -2/Research | Warlord forces began assault on 0b10 13361 | -2/Research | Evolved 2 slots: Utility x2 13361 | -2/Research | Identified Quantum Router 13382 | -2/Research | Identified exit to Testing 13471 | -2/Research | Research machine network offline 13578 | -2/Research | Found Prototype Slashing Weapon 13578 | -2/Research | Identified Nanosword 13637 | -2/Research | Build established: Wizard-Sprinter 13659 | -2/Research | Entered Testing 13671 | -2/Testing | Spotted Striker 13680 | -2/Testing | Spotted PH-5B69ERP17M 13683 | -2/Testing | Rewired PH-5B69ERP17M 13691 | -2/Testing | Identified Transdimensional Reconstructor 13691 | -2/Testing | Identified Potential Cannon 13700 | -2/Testing | Found Prototype Energy Cannon 13700 | -2/Testing | Identified Cld. Nova Cannon 13706 | -2/Testing | Identified exit to Access 13816 | -2/Testing | Spotted Striker 13937 | -2/Testing | Search patrols dispatched 13964 | -2/Testing | Fabricated Exp. Q-thruster (x1) 14067 | -2/Testing | Fabricated Exp. Q-thruster? 14193 | -2/Testing | Protovariant out of control (PP-IQ8IVUE88J) 14193 | -2/Testing | Unleashed a protovariant (PP-IQ8IVUE88J) 14199 | -2/Testing | Found Prototype Ballistic Gun 14200 | -2/Testing | Identified Hyp. Multirail 14206 | -2/Testing | Spotted PP-IQ8IVUE88J 14234 | -2/Testing | Incoming assault squad redirected 14256 | -2/Testing | Spotted Fortress 14269 | -2/Testing | Discovered new exit (range 7) 14270 | -2/Testing | Entered Section 7 14294 | -2/Section 7 | Spotted B-90 Cyclops 14294 | -2/Section 7 | Spotted S7 Guard 14300 | -2/Section 7 | Found Alien Energy Cannon 14349 | -2/Section 7 | Spotted S7 Guard 14511 | -2/Section 7 | Found Alien Artifact 14539 | -2/Section 7 | Found Alien Artifact 14544 | -2/Section 7 | Identified Spacefold Activator (x2) 14556 | -2/Section 7 | Found Alien Artifact 14564 | -2/Section 7 | Identified Integrated Dissipator 14564 | -2/Section 7 | Installed Integrated Dissipator, increased core heat dissipation (+20) 14574 | -2/Section 7 | Found Integrated Dissipator 14574 | -2/Section 7 | Installed Integrated Dissipator, increased core heat dissipation (+20) 14581 | -2/Section 7 | Found Alien Artifact 14590 | -2/Section 7 | Core integrity fell below 50% 14592 | -2/Section 7 | Identified Core Membrane 14596 | -2/Section 7 | Found Prototype Device 14596 | -2/Section 7 | Identified Beam Splitter 14598 | -2/Section 7 | Installed Core Membrane, gained immunity to corruption 14604 | -2/Section 7 | Spotted Alpha 7 14604 | -2/Section 7 | Spotted Alpha 7 14607 | -2/Section 7 | Spotted B-99 Colossus 14615 | -2/Section 7 | Found Integrated Dissipator 14615 | -2/Section 7 | Installed Integrated Dissipator, increased core heat dissipation (+20) 14617 | -2/Section 7 | Found Integrated Dissipator 14617 | -2/Section 7 | Installed Integrated Dissipator, increased core heat dissipation (+20) 14624 | -2/Section 7 | Found Alien Artifact 14624 | -2/Section 7 | Identified LRC Matter Compressor 14624 | -2/Section 7 | Installed LRC Matter Compressor, increased matter storage capacity (+125) 14692 | -2/Section 7 | Found Transdimensional Reconstructor 14694 | -2/Section 7 | Spotted Executioner 14694 | -2/Section 7 | Spotted Executioner 14712 | -2/Section 7 | Entered Access 14712 | -1/Access | Evolved 2 slots: Propulsion x2 14717 | -1/Access | Identified exit to Surface 14769 | -1/Access | Identified exit to Command 14782 | -1/Access | Spotted B-99 Colossus 14782 | -1/Access | Spotted B-99 Colossus 14879 | -1/Access | Entered Command 14896 | -1/Command | Found Imp. Powered Armor 14964 | -1/Command | Disengaged cave seal 14964 | -1/Command | Derelicts emerged from the dark tunnel 14964 | -1/Command | Welcomed Warlord to Command 15198 | -1/Command | Disengaged cave seal 15198 | -1/Command | Derelicts emerged from the dark tunnel 15388 | -1/Command | Repaired Exp. Power Amplifier 15446 | -1/Command | Spotted M Guard 15446 | -1/Command | Spotted M Guard 15446 | -1/Command | Spotted Combat Programmer 15446 | -1/Command | Spotted Combat Programmer 15465 | -1/Command | Combat Programmer assimilated allied 26-T1U(g) 15472 | -1/Command | Destroyed Combat Programmer 15558 | -1/Command | All MAIN.C guards destroyed 15619 | -1/Command | Warlord commented on Warlord statues 15870 | -1/Command | Met MAIN.C 15876 | -1/Command | 0b10 Conduit disabled 15883 | -1/Command | Destroyed MAIN.C Shell 15884 | -1/Command | MAIN.C activated Command garrisons 15909 | -1/Command | Discovered exit to Surface (range 27) 15909 | -1/Command | Discovered exit to Surface (range 83) 15909 | -1/Command | Extracted map data and part IDs from MAIN.C's data core 16057 | -1/Command | Spotted B-99 Colossus 16399 | -1/Command | Attacked by Warlord forces 16745 | -1/Command | Found Exp. Powered Armor 17239 | -1/Command | Found Exp. Targeting Computer 17358 | -1/Command | Found Zero-point Reactor 17359 | -1/Command | Found Zero-point Reactor 17403 | -1/Command | Found Exp. Targeting Computer 17677 | -1/Command | Found Hyp. Multirail 17768 | -1/Command | Warped through subspace to slip node 17768 | -1/Command | Discovered new exit (range 4) 17770 | -1/Command | Found Femtoactuators 17772 | -1/Command | Entered Access_0 17773 | -1/Access_0 | Met Architect 17806 | -1/Access_0 | A6 warped into view 17876 | -1/Access_0 | A5 warped into view 17885 | -1/Access_0 | Build established: Generator-Sprinter 17905 | -1/Access_0 | Destroyed A6 17913 | -1/Access_0 | Subspace Access Node disabled 17955 | -1/Access_0 | Destroyed 7 combat bots 17984 | -1/Access_0 | Found Exp. Weapon Cycler 18006 | -1/Access_0 | Found Corrupted Exp. Powered Armor 18028 | -1/Access_0 | A4 warped into view 18040 | -1/Access_0 | Found Exp. Phase Shifter 18053 | -1/Access_0 | Found Exp. Phase Shifter 18077 | -1/Access_0 | Subspace Access Node disabled 18101 | -1/Access_0 | Found Exp. Phase Shifter 18105 | -1/Access_0 | Found Corrupted Exp. Powered Armor 18120 | -1/Access_0 | Destroyed 11 combat bots 18138 | -1/Access_0 | Subspace Access Node disabled 18258 | -1/Access_0 | Found Zero-point Reactor 18326 | -1/Access_0 | A3 warped into view 18330 | -1/Access_0 | Subspace Access Node disabled 18357 | -1/Access_0 | Found Exp. Weapon Cycler 18381 | -1/Access_0 | Lost 3 parts (1n1u1w) 18526 | -1/Access_0 | DAS Turret deployed 18528 | -1/Access_0 | DAS Turret deployed 18533 | -1/Access_0 | Destroyed A3 18543 | -1/Access_0 | DAS Turret deployed 18544 | -1/Access_0 | Found Prototype Ballistic Gun 18544 | -1/Access_0 | Identified A3's Sniper Rifle 18591 | -1/Access_0 | Destroyed A8 18618 | -1/Access_0 | Found Prototype Device 18618 | -1/Access_0 | Identified ST Field Compressor 18674 | -1/Access_0 | Lost 7 parts (1p2n4u) 18706 | -1/Access_0 | Found Exp. Shield Generator 18709 | -1/Access_0 | Found Centrium Heavy Armor Plating 18819 | -1/Access_0 | Found Exp. Shield Generator 18849 | -1/Access_0 | Found Corrupted Exp. Powered Armor 18899 | -1/Access_0 | Found Exp. Targeting Computer 18937 | -1/Access_0 | Core integrity fell below 50% 19052 | -1/Access_0 | Found Prototype Device 19052 | -1/Access_0 | Identified Desublimator 19064 | -1/Access_0 | Lost 3 parts (1p2n) 19150 | -1/Access_0 | Found Exp. Targeting Computer 19152 | -1/Access_0 | Found Exp. Weapon Cycler 19156 | -1/Access_0 | Lost 4 parts (3n1u) 19205 | -1/Access_0 | Destroyed A4 19279 | -1/Access_0 | Lost 4 parts (2p2n) 19337 | -1/Access_0 | Core integrity fell below 20% 19365 | -1/Access_0 | Destroyed Architect 19366 | -1/Access_0 | Architect triggered a singularity event 19367 | -1/Access_0 | Released all parts (22) 19370 | -1/Access_0 | Found Hpw. Transdimensional Reconstructor 19370 | -1/Access_0 | Warped through subspace to slip node 19370 | -1/Access_0 | Discovered exit to Surface (range 8) 19373 | *** | Escaped singularity! Last Messages --------------- 19367_ Released Exp. Targeting Computer. 19367_ Released Exp. Q-thruster. 19367_ Released Exp. Weapon Cycler. 19367_ Released Imp. Q-thruster. 19367_ Released Diametric Drive. 19367_ Released Exp. Targeting Computer. 19367_ Released Adv. Matter Compressor. 19367_ Released Hdn. Centrium Leg. 19367_ Released Centrium Heavy Armor Plating. 19367_ Released Hdn. Centrium Leg. 19368_ A0_COM: 9. 19368_ Acquired Exp. Q-thruster. 19369_ A0_COM: 8. 19370_ A0_COM: 7. 19370_ Acquired Hpw. Transdimensional Reconstructor. 19370_ Warped through subspace, drawn to slip node. 19370_ EXIT=FOUND: SURFACE 19371_ A0_COM: 6. 19372_ A0_COM: 5. 19373_ A0_COM: 4. Map ----- +----------------------------------------------------+ | | | | | | | | | | | | | | | | | | | | | | | | | | | | | | | | | ?????????????????????????????????????????????????? | | ?????????????????????????????????????????????????? | | ?????????????????????????????????????????????????? | | ?????????????????????????????????????????????????? | | ?????????????????????????????????????????????????? | | ?????????????????????????????????????????????????? | | ????????????????????????###??????????????????????? | | ???????????????????????## ##?????????????????????? | | ???????????????????????# #?????????????????????? | | ???????????????????????# @ #?????????????????????? | | ??????????????????????## #?????????????????????? | | ??????????????????????# #?????????????????????? | | ??????????????????????# ##?????????????????????? | | ??????????????????????## #?????????????????????? | | ??????????????????????# #?????????????????????? | | ??????????????????????# ##?????????????????????? | | ??????????????????????# < #?????????????????????? | | ??????????????????????# ##?????????????????????? | | ??????????????????????## #??????????????????????? | | ???????????????????????####??????????????????????? | | ?????????????????????????????????????????????????? | | ?????????????????????????????????????????????????? | | ?????????????????????????????????????????????????? | | ?????????????????????????????????????????????????? | | ?????????????????????????????????????????????????? | | ?????????????????????????????????????????????????? | | ?????????????????????????????????????????????????? | | ?????????????????????????????????????????????????? | | ?????????????????????????????????????????????????? | | ?????????????????????????????????????????????????? | | ?????????????????????????????????????????????????? | | ?????????????????????????????????????????????????? | | ?????????????????????????????????????????????????? | | ?????????????????????????????????????????????????? | +----------------------------------------------------+ Best States ------------- Heat Dissipation 182 Energy Generation 182 Energy Capacity 1480 Matter Stores 925 Matter Capacity 925 Sight Range 22 Robot Scan Range 15 Terrain Scan Range 16 Terrain Scan Density 10 Cloak Strength 6 Power Amplification 120 Additional Mass Support 25 Armor Coverage 2000 Resistance: TH 30 Core Shielding 40 Propulsion Shielding 66 Utility Shielding 66 Weapon Shielding 90 Point Defense Rating 320 Weapon Cycling 30 Melee Speed Boost 50 Phase Shifting 20 Evasion (%) 93 Targeting Accuracy 36 Melee Accuracy 12 Target Analysis 10 Armor Integrity Analysis 50 Recoil Reduction 2 Particle Charging 25 Offensive Hacking 30 Defensive Hacking 59 Item Schematics ----------------- Hacking Suite | -9/Materials | Scanalyzed VTOL Module | -8/Mines | Hacked Imp. Propulsion Shielding | -8/Materials | Scanalyzed Combat Drone Bay | -7/Data Miner | Free Lgt. Regenerative Plating | -7/Data Miner | Free Cld. Cesium-ion Thruster | -7/Data Miner | Free Gravity Neutralizer | -7/Data Miner | Free Imp. Lightning Gun | -7/Data Miner | Free Linear Gravjet | -7/Data Miner | Free Coil Gun | -7/Data Miner | Free Imp. Shock Absorption System | -7/Data Miner | Free Disruptor Cannon | -7/Data Miner | Free Imp. Dynamic Insulation System | -7/Data Miner | Free Mass Driver | -7/Data Miner | Free Lrn. Sensor Array | -7/Data Miner | Free Phase Cannon | -6/Zion | Archive Enh. Gauss Cannon | -6/Zion | Archive Beamcaster | -6/Zion | Archive Hvy. Beamcaster | -6/Zion | Archive Fission Core | -6/Zion | Archive Imp. Weapon Cycler | -6/Zion | Archive Force Field | -6/Zion | Archive Hvy. Treads | -6/Zion | Archive Variable Charge Gun | -6/Zion | Archive Myomer Leg | -6/Zion | Archive Hvy. Plasma Cannon | -6/Zion | Archive Hpw. Shock Rifle | -6/Zion | Archive Adv. Transmission Jammer | -6/Zion | Archive Fusion Compressor | -6/Zion | Archive Imp. Recalibrator | -6/Zion | Archive Cmb. Linear Gravjet | -4/Extension | Hacked Impulse Thruster Array | -3/Research | Hacked Centrium Heavy Armor Plating | -3/Research | Scanalyzed Adv. Phase Shifter | -2/Research | Hacked Exp. Q-thruster | -2/Testing | Hacked Robot Schematics ------------------ M-22 Extractor | -7/Data Miner | Free H-55 Commando | -7/Data Miner | Free O-24 Administrator | -7/Data Miner | Free B-60 Warrior | -7/Data Miner | Free K-01 Serf | -6/Zion | Archive R-10 Processor | -6/Zion | Archive D-83 Annihilator | -6/Zion | Archive A-02 Transporter | -2/Testing | Archive C-65 Expert | -2/Testing | Archive Fabricated ------------ Exp. Q-thruster | x1 | -2/Testing Exp. Q-thruster | x1 | -2/Testing Alien Tech Used ----------------- Integrated Reactor Core Expander Spacefold Activator Integrated Dissipator Core Membrane LRC Matter Compressor Transdimensional Reconstructor High-powered Transdimensional Reconstructor Achievements -------------- None Challenges ------------ None Game ------ Seed DamperRestorationNukerbomber Manual? 0 Play Time 04:43:15 Cumulative 2419.6 hours Start 2022.05.14 @ 21:34:14 End 2022.05.15 @ 03:28:36 Sessions 3 Manual Loads 0 Difficulty Rogue Special Mode None Game No. 2745 Rogue 2737 Adventurer 0 Explorer 8 Win Type 6 Total 290 Types 49/32/101/3/3/5/94/2/1 Lore% 98 Gallery% 98 Achievement% 100 Wizard Run 0 Options --------- ASCII 0 Keyboard 1 Movement Numpad Keybinds 1 Fullscreen 1 Font 18/SmallcapsGlow Map View 76x50 Tactical HUD 1 Map Filters NONE Filters NONE Steam 1 RUN: b64c534a-63fb-43a7-8c9a-56e61838e6ea